Department Family,Entity,Payment Date,Expense Type,Expense Area,Supplier,Transaction Number,Amount,Invoice Description,Postal Code,"Capital,Programme or Admin Expenditure"
Food Standards Agency,Food Standards Agency,08/10/2014,Project Programme expenditure,Analysis & Research Branch,T N S Uk Ltd,260139345,"303,504.00",PO 417550 FIELDWORK FINAL 50%,W5 1UA,Programme
Food Standards Agency,Food Standards Agency,28/10/2014,Programme Evidence & Research Expenditure,Food & Feed Monitoring & Policy,University Of Edinburgh,Z0025897,"172,131.00","FS101055, E Coli 0157 super-shedding in cattle: Claim for the period 01/04 -30/06/14",EH1 1HT,Programme
Food Standards Agency,Food Standards Agency,28/10/2014,Programme Evidence & Research Expenditure,Food & Feed Monitoring & Policy,University Of Edinburgh,Z0025898,"172,130.00","FS101055, E Coli 0157 super-shedding in cattle: Claim for the period 01/07 - 30/09/14",EH1 1HT,Programme
Food Standards Agency,Food Standards Agency,28/10/2014,Project Programme expenditure,Animal Feed     ,Trading Standards Institute (GRANTS),ERS-36297-50126,"160,487.41",Feed Off. Conts 2014/15 project costs. Feed Official Controls funding 2014/15: project costs.,SS15 6TH,Programme
Food Standards Agency,Food Standards Agency,16/10/2014,Civil service pension administration,Finance Director & Branch,London Pensions Fund Authority,FSAOCT14,"155,165.00",PO 417619 FUND VALUATION,EC3N 4LP,Admin
Food Standards Agency,Food Standards Agency,20/10/2014,Project Programme expenditure,Food Production Branch,Public Health England,6101821,"82,212.00",PO 416894 INTERIM REPORT,NW9 5EQ,Programme
Food Standards Agency,Food Standards Agency,28/10/2014,Programme Evidence & Research Expenditure,Healthier Eating & Food Standards,Public Health England,315598,"69,000.00","FS111111, FSAS urinary sodium payments for Q2. Deliverable 5",SP4 0JG,Programme
Food Standards Agency,Food Standards Agency,06/10/2014,Project Programme expenditure,Analysis & Research Branch,Public Health England,6100794,"68,910.91",PO 405911 JUL - SEP 14 COSTS,SP4 0JG,Programme
Food Standards Agency,Food Standards Agency,02/10/2014,Fixed Assets Additions,Security & Estates,Aramark Ltd,90064402,"68,465.00",PO 419455 CAFE BAR,LS16 6QY,Capital
Food Standards Agency,Food Standards Agency,24/10/2014,Fixed Assets Additions,Security & Estates,Interior Motives International Limited,9484,"59,738.89",PO 419733 REFURBISHMENT,EC4R 2RA,Capital
Food Standards Agency,Food Standards Agency,06/10/2014,Rates/contrib in lieu of rates,Security & Estates,London Borough Of Camden,20081428614000A,"57,228.00",PO 418784 01/10/14 INSTALLMENT 01/04/15-31/03/15 A/C 68351658 PROPERTY REF 01126012530028,WC1H 8NH,Admin
Food Standards Agency,Food Standards Agency,16/10/2014,Programme Evidence & Research Expenditure,Microbiological Food Safety Branch,University Of Liverpool,21464918,"49,009.92",PO 416092 DELIVERABLES,L69 7ZX,Programme
Food Standards Agency,Food Standards Agency,06/10/2014,Project Programme expenditure,Food & Feed Monitoring & Policy,C E F A S,8004151,"48,567.82","FS315014, Phytoplankton Analysis",NR33 0HT,Programme
Food Standards Agency,Food Standards Agency,28/10/2014,Fixed Assets Additions,Security & Estates,G4s Integrated Services (Uk) Ltd,M19202,"45,578.16",PO 418890 ACCOMODATION MOVE COSTS,S81 7QF,Capital
Food Standards Agency,Food Standards Agency,08/10/2014,Programme Evidence & Research Expenditure,EU Regulatory Reform Branch,Ipsos Mori,14001758,"45,000.00",PO 418813 DEL METHODS PLAN & MONITORING FRWK,SE1 1FY,Programme
Food Standards Agency,Food Standards Agency,30/10/2014,Telecomms-data networks & call charges,IT Service Delivery,Vodafone Ltd,UK101020149310,"44,422.52",GSI GCF JUL - SEP '14,RG14 5FF,Admin
Food Standards Agency,Food Standards Agency,06/10/2014,Programme Evidence & Research Expenditure,Agricultural Process & Environmental Contaminants & Strategy,Food & Environment Research Agency,F0039189,"38,661.00",PO 415386 FS102035 Detection and Identification of Dioxin-like Compounds,YO41 1LZ,Programme
Food Standards Agency,Food Standards Agency,24/10/2014,Fixed Assets Additions,Security & Estates,Interior Motives International Limited,9471,"38,000.00",PO 419733 REFURBISHMENT,EC4R 2RA,Capital
Food Standards Agency,Food Standards Agency,08/10/2014,Project Programme expenditure,Agricultural Process & Environmental Contaminants & Strategy,University Of Bristol,FMVS1036505,"35,986.00",PO 406722 RETENTION FS241030,BS8 1TH,Programme
Food Standards Agency,Food Standards Agency,14/10/2014,Programme Evidence & Research Expenditure,Radiation & Residues,C E F A S,8004164,"35,328.00",PO 414854 Q2 YR 2,NR33 0HT,Programme
Food Standards Agency,Food Standards Agency,06/10/2014,Project Programme expenditure,Food & Feed Monitoring & Policy,C E F A S,8004151,"34,854.00","FS315014, Phytoplankton Analysis",NR33 0HT,Programme
Food Standards Agency,Food Standards Agency,28/10/2014,Project Programme expenditure,Consumer Protection & Commercial Support,East of England trading Standards,ERS-36328-50121,"34,410.80",East of England trading Standards -food sampling grant FY 14/15. 40% payment in Oct 14,IP1 5PF,Programme
Food Standards Agency,Food Standards Agency,10/10/2014,Project Programme expenditure,Operations Local Delivery ,N S F Safety & Quality UK Ltd,5041364,"34,337.47",PO 417523 COACHING VISITS,OX29 8SJ,Programme
Food Standards Agency,Food Standards Agency,02/10/2014,Mobile phone charges,IT Service Delivery,Vodafone Ltd,73073915,"33,270.59",JUN- AUG MOBILE CHARGES,RG14 5FF,Admin
Food Standards Agency,Food Standards Agency,14/10/2014,Project Programme expenditure,Analysis & Research Branch,C E F A S,8004220,"30,709.80",PO 414837 Q2 '14 - '15,NR33 0HT,Programme
Food Standards Agency,Food Standards Agency,16/10/2014,Utilities,Security & Estates,E D F Energy,EDF0172,"30,574.16",EDF INVOICE 172 - SEPT 2014,EX1 3UT,Admin
Food Standards Agency,Food Standards Agency,10/10/2014,Laundry,Operational Delivery,Apparelmaster UK Ltd,56811,"27,460.85",PO 417042 SEPTEMBER CHARGES,PR2 9ZD,Programme
Food Standards Agency,Food Standards Agency,30/10/2014,Programme Evidence & Research Expenditure,Agricultural Process & Environmental Contaminants & Strategy,Hall Mark Meat Hygiene Ltd,SI799,"27,091.00",PO 417080 DIET STUDY,GL6 9EN,Programme
Food Standards Agency,Food Standards Agency,28/10/2014,Project Programme expenditure,Operations Local Delivery ,C E F A S,8004263,"27,000.00",PO 413441 QTR 2 INVOICE PROJECT C3019,NR33 0HT,Programme
Food Standards Agency,Food Standards Agency,06/10/2014,Project Programme expenditure,Comms Directors Office,GovDelivery. Inc,2887,"26,799.00",PO 419485 HOSTING & MAINT,RH10 1JH,Programme
Food Standards Agency,Food Standards Agency,20/10/2014,Fixed Assets Additions,Operational Delivery,SourceCode UK Ltd T/A K2.net UK,14565,"26,000.00",PO 418708 26-29 AUG ..,SW19 4EE,Capital
Food Standards Agency,Food Standards Agency,08/10/2014,Programme Evidence & Research Expenditure,EU Regulatory Reform Branch,Food Control Consultants Ltd,362,"25,912.00",PO 418192 DELIVERABLE 3,EH12 7AN,Programme
Food Standards Agency,Food Standards Agency,14/10/2014,Project Programme expenditure,Food & Feed Monitoring & Policy,Hall Mark Meat Hygiene Ltd,SI0000781,"25,622.00","FS315020, Sampling visits Sep 14",GL6 9EN,Programme
Food Standards Agency,Food Standards Agency,28/10/2014,ASD support services,Finance Director & Branch,Shared Services Connected Ltd,100000511,"23,147.18",PO 415746 OCT 14 CHARGES,HP2 7AH,Admin
Food Standards Agency,Food Standards Agency,14/10/2014,Carriage of samples,Operational Delivery,Topspeed Couriers Limited,56913,"22,508.70",PO 417507 RIM COLLECTIONS SEP 14,WA16 8XN,Programme
Food Standards Agency,Food Standards Agency,28/10/2014,Project Programme expenditure,Strategic Stakeholder & Consumer Engagement,T N S Uk Ltd,260140907,"22,200.00","FS324015, Country of origin labelling",W5 1UA,Programme
Food Standards Agency,Food Standards Agency,06/10/2014,Project Programme expenditure,Food & Feed Monitoring & Policy,C E F A S,8004151,"21,275.00","FS315014, Phytoplankton Analysis",NR33 0HT,Programme
Food Standards Agency,Food Standards Agency,08/10/2014,Programme Evidence & Research Expenditure,EU Regulatory Reform Branch,Ipsos Mori,14001758,"18,900.00",PO 418813 DEL METHODS PLAN & MONITORING FRWK,SE1 1FY,Programme
Food Standards Agency,Food Standards Agency,06/10/2014,Fixed Assets Additions,Security & Estates,Capita Secure Information Solutions Ltd,93916663,"18,886.00",PO 418863 FSA-496A AVH RE-STACK JULY/AUG 14),SN14 0TW,Capital
Food Standards Agency,Food Standards Agency,06/10/2014,Fixed Assets Additions,Security & Estates,Capita Secure Information Solutions Ltd,93916663,"17,649.54",PO 418863 FSA-496A AVH RE-STACK JULY/AUG 14),SN14 0TW,Capital
Food Standards Agency,Food Standards Agency,28/10/2014,Project Programme expenditure,Animal Feed     ,Trading Standards Institute (GRANTS),ERS-36297-50126,"17,500.00",Feed Off. Conts 2014/15 project costs. Feed Official Controls funding 2014/15: project costs.,SS15 6TH,Programme
Food Standards Agency,Food Standards Agency,24/10/2014,Project Programme expenditure,Operations Local Delivery ,University Of Westminster,9801180,"14,981.50",PO 413615 EVALUATION OF THE NATIONAL FOOD HYGIENE RATING SCHEME,W1W 6UP,Programme
Food Standards Agency,Food Standards Agency,02/10/2014,Fixed Assets Additions,Security & Estates,Aramark Ltd,90064402,"13,693.00",PO 419455 CAFE BAR,LS16 6QY,Capital
Food Standards Agency,Food Standards Agency,24/10/2014,IT Software Licences,IT Service Delivery,E S R I (UK) Ltd,121481,"13,350.00",PO 419285 RENEWAL QUOTE 023760 MAINTENANCE RENEWAL UNTIL 31/10/15,HP21 7QG,Admin
Food Standards Agency,Food Standards Agency,24/10/2014,IT Software Licences,IT Service Delivery,E S R I (UK) Ltd,121481,"13,200.00",PO 419285 RENEWAL QUOTE 023760 MAINTENANCE RENEWAL UNTIL 31/10/15,HP21 7QG,Admin
Food Standards Agency,Food Standards Agency,24/10/2014,Fixed Assets Additions,Security & Estates,Interior Motives International Limited,9484,"11,947.78",PO 419733 REFURBISHMENT,EC4R 2RA,Capital
Food Standards Agency,Food Standards Agency,24/10/2014,Project Programme expenditure,Operations Local Delivery ,University Of Westminster,9801180,"9,771.00",PO 413615 EVALUATION OF THE NATIONAL FOOD HYGIENE RATING SCHEME,W1W 6UP,Programme
Food Standards Agency,Food Standards Agency,28/10/2014,Fixed Assets Additions,Security & Estates,G4s Integrated Services (Uk) Ltd,M19202,"9,115.63",PO 418890 ACCOMODATION MOVE COSTS,S81 7QF,Capital
Food Standards Agency,Food Standards Agency,30/10/2014,Telecomms-data networks & call charges,IT Service Delivery,Vodafone Ltd,UK101020149310,"8,884.50",GSI GCF JUL - SEP '14,RG14 5FF,Admin
Food Standards Agency,Food Standards Agency,28/10/2014,Project Programme expenditure,Animal Feed     ,Trading Standards Institute (GRANTS),ERS-36297-50126,"8,770.80",Feed Off. Conts 2014/15 project costs. Feed Official Controls funding 2014/15: project costs.,SS15 6TH,Programme
Food Standards Agency,Food Standards Agency,24/10/2014,Fixed Assets Additions,Security & Estates,Interior Motives International Limited,9471,"7,600.00",PO 419733 REFURBISHMENT,EC4R 2RA,Capital
Food Standards Agency,Food Standards Agency,20/10/2014,Subsistence UK,Operational Delivery,Redfern Travel Ltd,092197,"7,591.35",REDFERN TRAVEL INVOICE wk 41,BD1 3AZ,Programme
Food Standards Agency,Food Standards Agency,02/10/2014,Mobile phone charges,IT Service Delivery,Vodafone Ltd,73073915,"6,654.12",JUN- AUG MOBILE CHARGES,RG14 5FF,Admin
Food Standards Agency,Food Standards Agency,28/10/2014,Project Programme expenditure,Animal Feed     ,Trading Standards Institute (GRANTS),ERS-36297-50126,"6,500.00",Feed Off. Conts 2014/15 project costs. Feed Official Controls funding 2014/15: project costs.,SS15 6TH,Programme
Food Standards Agency,Food Standards Agency,16/10/2014,Utilities,Security & Estates,E D F Energy,EDF0172,"6,114.83",EDF INVOICE 172 - SEPT 2014,EX1 3UT,Admin
Food Standards Agency,Food Standards Agency,10/10/2014,Laundry,Operational Delivery,Apparelmaster UK Ltd,56811,"5,492.17",PO 417042 SEPTEMBER CHARGES,PR2 9ZD,Programme
Food Standards Agency,Food Standards Agency,20/10/2014,Fixed Assets Additions,Operational Delivery,SourceCode UK Ltd T/A K2.net UK,14565,"5,200.00",PO 418708 P KELLY 26-29 AUG ..,SW19 4EE,Capital
Food Standards Agency,Food Standards Agency,28/10/2014,Other Accommodation Costs,Security & Estates,G4s Integrated Services (Uk) Ltd,M19202,"5,183.18",PO 418890 ACCOMMODATION MOVE COSTS,S81 7QF,Admin
Food Standards Agency,Food Standards Agency,28/10/2014,Subsistence UK,Operational Delivery,Redfern Travel Ltd,092481,"4,851.31",REDFERN TRAVEL INVOICE wk 42,BD1 3AZ,Programme
Food Standards Agency,Food Standards Agency,06/10/2014,Fixed Assets Additions,Security & Estates,Capita Secure Information Solutions Ltd,93916663,"3,529.91",PO 418863 FSA-496A AVH RE-STACK JULY/AUG 14),SN14 0TW,Capital
Food Standards Agency,Food Standards Agency,24/10/2014,IT Software Licences,IT Service Delivery,E S R I (UK) Ltd,121481,"3,400.00",PO 419285 RENEWAL QUOTE 023760 MAINTENANCE RENEWAL UNTIL 31/10/15,HP21 7QG,Admin
Food Standards Agency,Food Standards Agency,24/10/2014,IT Software Licences,IT Service Delivery,E S R I (UK) Ltd,121481,"2,745.00",PO 419285 RENEWAL QUOTE 023760 MAINTENANCE RENEWAL UNTIL 31/10/15,HP21 7QG,Admin
Food Standards Agency,Food Standards Agency,24/10/2014,IT Software Licences,IT Service Delivery,E S R I (UK) Ltd,121481,"2,670.00",PO 419285 RENEWAL QUOTE 023760 MAINTENANCE RENEWAL UNTIL 31/10/15,HP21 7QG,Admin
Food Standards Agency,Food Standards Agency,24/10/2014,IT Software Licences,IT Service Delivery,E S R I (UK) Ltd,121481,"2,640.00",PO 419285 RENEWAL QUOTE 023760 MAINTENANCE RENEWAL UNTIL 31/10/15,HP21 7QG,Admin
Food Standards Agency,Food Standards Agency,06/10/2014,Subsistence UK,FSA Board,Redfern Travel Ltd,090404,"2,627.36",REDFERN TRAVEL INVOICE wk 39,BD1 3AZ,Admin
Food Standards Agency,Food Standards Agency,06/10/2014,Travel UK ,Planning and Performance,Redfern Travel Ltd,090404,"2,544.25",REDFERN TRAVEL INVOICE wk 39,BD1 3AZ,Admin
Food Standards Agency,Food Standards Agency,20/10/2014,Travel UK ,Operational Delivery,Redfern Travel Ltd,092197,"2,538.17",REDFERN TRAVEL INVOICE wk 41,BD1 3AZ,Programme
Food Standards Agency,Food Standards Agency,06/10/2014,Subsistence UK,Operational Delivery,Redfern Travel Ltd,090404,"2,515.79",REDFERN TRAVEL INVOICE wk 39,BD1 3AZ,Programme
Food Standards Agency,Food Standards Agency,10/10/2014,Travel UK ,Operational Delivery,Redfern Travel Ltd,091671,"2,448.30",REDFERN TRAVEL INVOICE wk 40,BD1 3AZ,Programme
Food Standards Agency,Food Standards Agency,20/10/2014,Travel UK ,Consumer Protection & Commercial Support,Redfern Travel Ltd,092197,"2,333.43",REDFERN TRAVEL INVOICE wk 41,BD1 3AZ,Admin
Food Standards Agency,Food Standards Agency,06/10/2014,Travel UK ,Operational Delivery,Redfern Travel Ltd,090404,"2,310.14",REDFERN TRAVEL INVOICE wk 39,BD1 3AZ,Programme
Food Standards Agency,Food Standards Agency,24/10/2014,IT Software Licences,IT Service Delivery,E S R I (UK) Ltd,121481,"2,040.00",PO 419285 RENEWAL QUOTE 023760 MAINTENANCE RENEWAL UNTIL 31/10/15,HP21 7QG,Admin
Food Standards Agency,Food Standards Agency,24/10/2014,Project Programme expenditure,Enforcement Policy,University Of Westminster,9801180,"1,998.50",PO 413615 EVALUATION OF THE NATIONAL FOOD HYGIENE RATING SCHEME,W1W 6UP,Programme
Food Standards Agency,Food Standards Agency,28/10/2014,Travel UK ,Operational Delivery,Redfern Travel Ltd,092481,"1,963.49",REDFERN TRAVEL INVOICE wk 42,BD1 3AZ,Programme
Food Standards Agency,Food Standards Agency,10/10/2014,Subsistence UK,Operational Delivery,Redfern Travel Ltd,091671,"1,741.04",REDFERN TRAVEL INVOICE wk 40,BD1 3AZ,Programme
Food Standards Agency,Food Standards Agency,06/10/2014,Travel UK ,Operations Assurance,Redfern Travel Ltd,090404,"1,693.23",REDFERN TRAVEL INVOICE wk 39,BD1 3AZ,Programme
Food Standards Agency,Food Standards Agency,28/10/2014,Other Accommodation Costs,Security & Estates,G4s Integrated Services (Uk) Ltd,M19202,"1,655.50",PO 418890 ACCOMMODATION MOVE COSTS,S81 7QF,Admin
Food Standards Agency,Food Standards Agency,20/10/2014,Travel UK ,HR,Redfern Travel Ltd,092197,"1,612.16",REDFERN TRAVEL INVOICE wk 41,BD1 3AZ,Admin
Food Standards Agency,Food Standards Agency,20/10/2014,Subsistence UK,Consumer Protection & Commercial Support,Redfern Travel Ltd,092197,"1,588.50",REDFERN TRAVEL INVOICE wk 41,BD1 3AZ,Admin
Food Standards Agency,Food Standards Agency,06/10/2014,Subsistence UK,Operations Assurance,Redfern Travel Ltd,090404,"1,577.38",REDFERN TRAVEL INVOICE wk 39,BD1 3AZ,Programme
Food Standards Agency,Food Standards Agency,20/10/2014,Travel UK ,Operations Local Delivery ,Redfern Travel Ltd,092197,"1,537.87",REDFERN TRAVEL INVOICE wk 41,BD1 3AZ,Admin
Food Standards Agency,Food Standards Agency,28/10/2014,Travel UK ,Operations Assurance,Redfern Travel Ltd,092481,"1,501.97",REDFERN TRAVEL INVOICE wk 42,BD1 3AZ,Programme
Food Standards Agency,Food Standards Agency,10/10/2014,Travel UK ,Planning and Performance,Redfern Travel Ltd,091671,"1,413.75",REDFERN TRAVEL INVOICE wk 40,BD1 3AZ,Admin
Food Standards Agency,Food Standards Agency,20/10/2014,Travel UK ,Operations Assurance,Redfern Travel Ltd,092197,"1,401.50",REDFERN TRAVEL INVOICE wk 41,BD1 3AZ,Programme
Food Standards Agency,Food Standards Agency,10/10/2014,Subsistence UK,Operations Assurance,Redfern Travel Ltd,091671,"1,330.80",REDFERN TRAVEL INVOICE wk 40,BD1 3AZ,Programme
Food Standards Agency,Food Standards Agency,28/10/2014,Travel UK ,Operations Local Delivery ,Redfern Travel Ltd,092481,"1,324.30",REDFERN TRAVEL INVOICE wk 42,BD1 3AZ,Admin
Food Standards Agency,Food Standards Agency,10/10/2014,Travel UK ,Operations Assurance,Redfern Travel Ltd,091671,"1,231.89",REDFERN TRAVEL INVOICE wk 40,BD1 3AZ,Programme
Food Standards Agency,Food Standards Agency,10/10/2014,Subsistence UK,Operations Assurance - Admin,Redfern Travel Ltd,091671,"1,208.54",REDFERN TRAVEL INVOICE wk 40,BD1 3AZ,Admin
Food Standards Agency,Food Standards Agency,20/10/2014,Travel UK ,Planning and Performance,Redfern Travel Ltd,092197,"1,194.21",REDFERN TRAVEL INVOICE wk 41,BD1 3AZ,Admin
Food Standards Agency,Food Standards Agency,28/10/2014,Travel UK ,Operations Assurance - Admin,Redfern Travel Ltd,092481,"1,183.36",REDFERN TRAVEL INVOICE wk 42,BD1 3AZ,Admin
Food Standards Agency,Food Standards Agency,20/10/2014,Travel UK ,Finance Director & Branch,Redfern Travel Ltd,092197,"1,157.20",REDFERN TRAVEL INVOICE wk 41,BD1 3AZ,Admin
Food Standards Agency,Food Standards Agency,20/10/2014,Travel UK ,Chair & Deputy Chair,Redfern Travel Ltd,092197,"1,142.14",REDFERN TRAVEL INVOICE wk 41,BD1 3AZ,Admin
Food Standards Agency,Food Standards Agency,10/10/2014,Travel UK ,Area 5 South West England - Cluster 55,Redfern Travel Ltd,091671,"1,095.75",REDFERN TRAVEL INVOICE wk 40,BD1 3AZ,Programme
Food Standards Agency,Food Standards Agency,06/10/2014,Travel UK ,Operations Local Delivery ,Redfern Travel Ltd,090404,"1,070.82",REDFERN TRAVEL INVOICE wk 39,BD1 3AZ,Admin
Food Standards Agency,Food Standards Agency,28/10/2014,Other Accommodation Costs,Security & Estates,G4s Integrated Services (Uk) Ltd,M19202,"1,036.64",PO 418890 ACCOMMODATION MOVE COSTS,S81 7QF,Admin
Food Standards Agency,Food Standards Agency,06/10/2014,Travel UK ,Finance Director & Branch,Redfern Travel Ltd,090404,"1,020.13",REDFERN TRAVEL INVOICE wk 39,BD1 3AZ,Admin
Food Standards Agency,Food Standards Agency,28/10/2014,Subsistence UK,Planning and Performance,Redfern Travel Ltd,092481,"1,009.74",REDFERN TRAVEL INVOICE wk 42,BD1 3AZ,Admin
Food Standards Agency,Food Standards Agency,10/10/2014,Travel UK ,Operations Assurance - Admin,Redfern Travel Ltd,091671,976.34,REDFERN TRAVEL INVOICE wk 40,BD1 3AZ,Admin
Food Standards Agency,Food Standards Agency,28/10/2014,Travel UK ,HR,Redfern Travel Ltd,092481,933.07,REDFERN TRAVEL INVOICE wk 42,BD1 3AZ,Admin
Food Standards Agency,Food Standards Agency,28/10/2014,Subsistence UK,Operations Assurance - Admin,Redfern Travel Ltd,092481,896.51,REDFERN TRAVEL INVOICE wk 42,BD1 3AZ,Admin
Food Standards Agency,Food Standards Agency,20/10/2014,Subsistence UK,Area 5 South West England - Cluster 51,Redfern Travel Ltd,092197,882.12,REDFERN TRAVEL INVOICE wk 41,BD1 3AZ,Programme
Food Standards Agency,Food Standards Agency,06/10/2014,Subsistence UK,Area 5 South West England - Cluster 51,Redfern Travel Ltd,090404,880.03,REDFERN TRAVEL INVOICE wk 39,BD1 3AZ,Programme
Food Standards Agency,Food Standards Agency,24/10/2014,IT Software Licences,IT Service Delivery,E S R I (UK) Ltd,121481,875.00,PO 419285 RENEWAL QUOTE 023760 MAINTENANCE RENEWAL UNTIL 31/10/15,HP21 7QG,Admin
Food Standards Agency,Food Standards Agency,20/10/2014,Travel UK ,Area 6 South East England - Cluster 63,Redfern Travel Ltd,092197,873.16,REDFERN TRAVEL INVOICE wk 41,BD1 3AZ,Programme
Food Standards Agency,Food Standards Agency,28/10/2014,Travel UK ,Better Regulations & Sustainable Development,Redfern Travel Ltd,092481,849.38,REDFERN TRAVEL INVOICE wk 42,BD1 3AZ,Admin
Food Standards Agency,Food Standards Agency,28/10/2014,Travel UK ,Food Policy Private Office,Redfern Travel Ltd,092481,820.01,REDFERN TRAVEL INVOICE wk 42,BD1 3AZ,Admin
Food Standards Agency,Food Standards Agency,06/10/2014,Travel UK ,Better Regulations & Sustainable Development,Redfern Travel Ltd,090404,819.84,REDFERN TRAVEL INVOICE wk 39,BD1 3AZ,Admin
Food Standards Agency,Food Standards Agency,28/10/2014,Travel UK ,Planning and Performance,Redfern Travel Ltd,092481,815.70,REDFERN TRAVEL INVOICE wk 42,BD1 3AZ,Admin
Food Standards Agency,Food Standards Agency,28/10/2014,Travel UK ,Finance Director & Branch,Redfern Travel Ltd,092481,811.07,REDFERN TRAVEL INVOICE wk 42,BD1 3AZ,Admin
Food Standards Agency,Food Standards Agency,06/10/2014,ASD support services,IT Service Delivery,Capita Secure Information Solutions Ltd,93916663,788.92,PO 418863 FSA-496A AVH RE-STACK JULY/AUG 14),SN14 0TW,Admin
Food Standards Agency,Food Standards Agency,20/10/2014,Subsistence UK,Operations Assurance,Redfern Travel Ltd,092197,747.97,REDFERN TRAVEL INVOICE wk 41,BD1 3AZ,Programme
Food Standards Agency,Food Standards Agency,20/10/2014,Subsistence - EC,Additives,Redfern Travel Ltd,092197,744.12,REDFERN TRAVEL INVOICE wk 41,BD1 3AZ,Admin
Food Standards Agency,Food Standards Agency,10/10/2014,Travel UK ,Operations Local Delivery ,Redfern Travel Ltd,091671,735.56,REDFERN TRAVEL INVOICE wk 40,BD1 3AZ,Admin
Food Standards Agency,Food Standards Agency,06/10/2014,Travel UK ,Area 6 South East England - Cluster 63,Redfern Travel Ltd,090404,711.68,REDFERN TRAVEL INVOICE wk 39,BD1 3AZ,Programme
Food Standards Agency,Food Standards Agency,06/10/2014,Travel UK ,Radiation & Residues,Redfern Travel Ltd,090404,688.71,REDFERN TRAVEL INVOICE wk 39,BD1 3AZ,Admin
Food Standards Agency,Food Standards Agency,28/10/2014,Subsistence UK,Operations Assurance,Redfern Travel Ltd,092481,684.91,REDFERN TRAVEL INVOICE wk 42,BD1 3AZ,Programme
Food Standards Agency,Food Standards Agency,28/10/2014,Travel UK ,Agricultural Process & Environmental Contaminants & Strategy,Redfern Travel Ltd,092481,683.64,REDFERN TRAVEL INVOICE wk 42,BD1 3AZ,Admin
Food Standards Agency,Food Standards Agency,24/10/2014,IT Software Licences,IT Service Delivery,E S R I (UK) Ltd,121481,680.00,PO 419285 RENEWAL QUOTE 023760 MAINTENANCE RENEWAL UNTIL 31/10/15,HP21 7QG,Admin
Food Standards Agency,Food Standards Agency,24/10/2014,IT Software Licences,IT Service Delivery,E S R I (UK) Ltd,121481,680.00,PO 419285 RENEWAL QUOTE 023760 MAINTENANCE RENEWAL UNTIL 31/10/15,HP21 7QG,Admin
Food Standards Agency,Food Standards Agency,20/10/2014,Subsistence UK,Planning and Performance,Redfern Travel Ltd,092197,663.69,REDFERN TRAVEL INVOICE wk 41,BD1 3AZ,Admin
Food Standards Agency,Food Standards Agency,06/10/2014,Subsistence UK,Legal Branch A,Redfern Travel Ltd,090404,658.90,REDFERN TRAVEL INVOICE wk 39,BD1 3AZ,Admin
Food Standards Agency,Food Standards Agency,20/10/2014,Subsistence - EC,European & International Strategy,Redfern Travel Ltd,092197,642.99,REDFERN TRAVEL INVOICE wk 41,BD1 3AZ,Admin
Food Standards Agency,Food Standards Agency,10/10/2014,Travel UK ,Chair & Deputy Chair,Redfern Travel Ltd,091671,636.69,REDFERN TRAVEL INVOICE wk 40,BD1 3AZ,Admin
Food Standards Agency,Food Standards Agency,28/10/2014,Subsistence - EC,Hygiene & Microbiology Division HoD,Redfern Travel Ltd,092481,630.61,REDFERN TRAVEL INVOICE wk 42,BD1 3AZ,Admin
Food Standards Agency,Food Standards Agency,06/10/2014,Travel UK ,Area 6 South East England - Cluster 64,Redfern Travel Ltd,090404,626.36,REDFERN TRAVEL INVOICE wk 39,BD1 3AZ,Programme
Food Standards Agency,Food Standards Agency,28/10/2014,Travel UK ,Non Meat Field Ops,Redfern Travel Ltd,092481,624.06,REDFERN TRAVEL INVOICE wk 42,BD1 3AZ,Programme
Food Standards Agency,Food Standards Agency,20/10/2014,Travel UK ,Agricultural Process & Environmental Contaminants & Strategy,Redfern Travel Ltd,092197,623.90,REDFERN TRAVEL INVOICE wk 41,BD1 3AZ,Admin
Food Standards Agency,Food Standards Agency,10/10/2014,Travel UK ,IT Information & Knowledge Management,Redfern Travel Ltd,091671,611.28,REDFERN TRAVEL INVOICE wk 40,BD1 3AZ,Admin
Food Standards Agency,Food Standards Agency,10/10/2014,Travel UK ,Internal Audit,Redfern Travel Ltd,091671,598.02,REDFERN TRAVEL INVOICE wk 40,BD1 3AZ,Admin
Food Standards Agency,Food Standards Agency,10/10/2014,Travel UK ,Procurement,Redfern Travel Ltd,091671,576.07,REDFERN TRAVEL INVOICE wk 40,BD1 3AZ,Admin
Food Standards Agency,Food Standards Agency,06/10/2014,Travel UK ,Area 6 South East England - Cluster 62,Redfern Travel Ltd,090404,575.62,REDFERN TRAVEL INVOICE wk 39,BD1 3AZ,Programme
Food Standards Agency,Food Standards Agency,06/10/2014,Travel UK ,Comms Directors Office,Redfern Travel Ltd,090404,567.53,REDFERN TRAVEL INVOICE wk 39,BD1 3AZ,Admin
Food Standards Agency,Food Standards Agency,20/10/2014,Travel UK ,Internal Audit,Redfern Travel Ltd,092197,564.79,REDFERN TRAVEL INVOICE wk 41,BD1 3AZ,Admin
Food Standards Agency,Food Standards Agency,28/10/2014,Travel UK ,Area 6 South East England - Cluster 63,Redfern Travel Ltd,092481,562.08,REDFERN TRAVEL INVOICE wk 42,BD1 3AZ,Programme
Food Standards Agency,Food Standards Agency,10/10/2014,Travel UK ,Finance Director & Branch,Redfern Travel Ltd,091671,553.95,REDFERN TRAVEL INVOICE wk 40,BD1 3AZ,Admin
Food Standards Agency,Food Standards Agency,24/10/2014,IT Software Licences,IT Service Delivery,E S R I (UK) Ltd,121481,549.00,PO 419285 RENEWAL QUOTE 023760 MAINTENANCE RENEWAL UNTIL 31/10/15,HP21 7QG,Admin
Food Standards Agency,Food Standards Agency,06/10/2014,Travel UK ,Legal Branch A,Redfern Travel Ltd,090404,545.65,REDFERN TRAVEL INVOICE wk 39,BD1 3AZ,Admin
Food Standards Agency,Food Standards Agency,06/10/2014,Subsistence UK,Area 4 North East England - Cluster 41,Redfern Travel Ltd,090404,538.44,REDFERN TRAVEL INVOICE wk 39,BD1 3AZ,Programme
Food Standards Agency,Food Standards Agency,28/10/2014,Travel UK ,Comms Directors Office,Redfern Travel Ltd,092481,533.33,REDFERN TRAVEL INVOICE wk 42,BD1 3AZ,Admin
Food Standards Agency,Food Standards Agency,06/10/2014,Travel UK ,Food Policy Private Office,Redfern Travel Ltd,090404,525.66,REDFERN TRAVEL INVOICE wk 39,BD1 3AZ,Admin
Food Standards Agency,Food Standards Agency,10/10/2014,Travel UK ,HR,Redfern Travel Ltd,091671,514.86,REDFERN TRAVEL INVOICE wk 40,BD1 3AZ,Admin
Food Standards Agency,Food Standards Agency,10/10/2014,Subsistence UK,Planning and Performance,Redfern Travel Ltd,091671,508.27,REDFERN TRAVEL INVOICE wk 40,BD1 3AZ,Admin
Food Standards Agency,Food Standards Agency,28/10/2014,Travel UK ,Animal Feed Branch,Redfern Travel Ltd,092481,500.03,REDFERN TRAVEL INVOICE wk 42,BD1 3AZ,Admin
Food Standards Agency,Food Standards Agency,28/10/2014,Subsistence UK,Non Meat Field Ops,Redfern Travel Ltd,092481,491.80,REDFERN TRAVEL INVOICE wk 42,BD1 3AZ,Programme
Food Standards Agency,Food Standards Agency,20/10/2014,Travel UK ,Food Policy Private Office,Redfern Travel Ltd,092197,485.92,REDFERN TRAVEL INVOICE wk 41,BD1 3AZ,Admin
Food Standards Agency,Food Standards Agency,06/10/2014,Travel UK ,IT Service Delivery,Redfern Travel Ltd,090404,483.37,REDFERN TRAVEL INVOICE wk 39,BD1 3AZ,Admin
Food Standards Agency,Food Standards Agency,20/10/2014,Subsistence UK,Chief Executive & Private Office,Redfern Travel Ltd,092197,481.68,REDFERN TRAVEL INVOICE wk 41,BD1 3AZ,Admin
Food Standards Agency,Food Standards Agency,20/10/2014,Travel UK ,Chief Executive & Private Office,Redfern Travel Ltd,092197,480.27,REDFERN TRAVEL INVOICE wk 41,BD1 3AZ,Admin
Food Standards Agency,Food Standards Agency,06/10/2014,Subsistence UK,Chief Executive & Private Office,Redfern Travel Ltd,090404,478.72,REDFERN TRAVEL INVOICE wk 39,BD1 3AZ,Admin
Food Standards Agency,Food Standards Agency,10/10/2014,Subsistence UK,Procurement,Redfern Travel Ltd,091671,476.33,REDFERN TRAVEL INVOICE wk 40,BD1 3AZ,Admin
Food Standards Agency,Food Standards Agency,06/10/2014,Travel UK ,Operations Assurance - Admin,Redfern Travel Ltd,090404,468.25,REDFERN TRAVEL INVOICE wk 39,BD1 3AZ,Admin
Food Standards Agency,Food Standards Agency,06/10/2014,Subsistence UK,Operations Local Delivery ,Redfern Travel Ltd,090404,466.69,REDFERN TRAVEL INVOICE wk 39,BD1 3AZ,Admin
Food Standards Agency,Food Standards Agency,06/10/2014,Subsistence UK,Planning and Performance,Redfern Travel Ltd,090404,461.74,REDFERN TRAVEL INVOICE wk 39,BD1 3AZ,Admin
Food Standards Agency,Food Standards Agency,06/10/2014,Travel UK ,HR,Redfern Travel Ltd,090404,461.38,REDFERN TRAVEL INVOICE wk 39,BD1 3AZ,Admin
Food Standards Agency,Food Standards Agency,20/10/2014,Subsistence - EC,Legal Branch A,Redfern Travel Ltd,092197,451.98,REDFERN TRAVEL INVOICE wk 41,BD1 3AZ,Admin
Food Standards Agency,Food Standards Agency,28/10/2014,Travel UK ,Area 1 Scotland - Cluster 11,Redfern Travel Ltd,092481,435.07,REDFERN TRAVEL INVOICE wk 42,BD1 3AZ,Programme
Food Standards Agency,Food Standards Agency,06/10/2014,Subsistence UK,Area 1 Scotland - Cluster 11,Redfern Travel Ltd,090404,432.68,REDFERN TRAVEL INVOICE wk 39,BD1 3AZ,Programme
Food Standards Agency,Food Standards Agency,20/10/2014,Travel UK ,Area 2 Wales - Cluster 23,Redfern Travel Ltd,092197,418.33,REDFERN TRAVEL INVOICE wk 41,BD1 3AZ,Programme
Food Standards Agency,Food Standards Agency,10/10/2014,Travel UK ,Comms Directors Office,Redfern Travel Ltd,091671,414.55,REDFERN TRAVEL INVOICE wk 40,BD1 3AZ,Admin
Food Standards Agency,Food Standards Agency,24/10/2014,IT Software Licences,IT Service Delivery,E S R I (UK) Ltd,121481,408.00,PO 419285 RENEWAL QUOTE 023760 MAINTENANCE RENEWAL UNTIL 31/10/15,HP21 7QG,Admin
Food Standards Agency,Food Standards Agency,20/10/2014,Subsistence UK,Legal Branch A,Redfern Travel Ltd,092197,405.79,REDFERN TRAVEL INVOICE wk 41,BD1 3AZ,Admin
Food Standards Agency,Food Standards Agency,28/10/2014,International Travel,Allergens,Redfern Travel Ltd,092481,401.96,REDFERN TRAVEL INVOICE wk 42,BD1 3AZ,Admin
Food Standards Agency,Food Standards Agency,06/10/2014,Subsistence UK,Operations Assurance - Admin,Redfern Travel Ltd,090404,399.83,REDFERN TRAVEL INVOICE wk 39,BD1 3AZ,Admin
Food Standards Agency,Food Standards Agency,06/10/2014,Subsistence UK,Area 6 South East England - Cluster 63,Redfern Travel Ltd,090404,398.57,REDFERN TRAVEL INVOICE wk 39,BD1 3AZ,Programme
Food Standards Agency,Food Standards Agency,06/10/2014,Travel UK ,Area 6 South East England - Cluster 66,Redfern Travel Ltd,090404,390.34,REDFERN TRAVEL INVOICE wk 39,BD1 3AZ,Programme
Food Standards Agency,Food Standards Agency,06/10/2014,Travel UK ,Area 1 Scotland - Cluster 13,Redfern Travel Ltd,090404,389.42,REDFERN TRAVEL INVOICE wk 39,BD1 3AZ,Programme
Food Standards Agency,Food Standards Agency,28/10/2014,Travel UK ,Area 1 Scotland - Cluster 13,Redfern Travel Ltd,092481,379.96,REDFERN TRAVEL INVOICE wk 42,BD1 3AZ,Programme
Food Standards Agency,Food Standards Agency,06/10/2014,Travel UK ,Consumer Protection & Commercial Support,Redfern Travel Ltd,090404,379.03,REDFERN TRAVEL INVOICE wk 39,BD1 3AZ,Admin
Food Standards Agency,Food Standards Agency,28/10/2014,Subsistence UK,Area 4 North East England - Cluster 46,Redfern Travel Ltd,092481,377.77,REDFERN TRAVEL INVOICE wk 42,BD1 3AZ,Programme
Food Standards Agency,Food Standards Agency,28/10/2014,Subsistence UK,HR,Redfern Travel Ltd,092481,376.52,REDFERN TRAVEL INVOICE wk 42,BD1 3AZ,Admin
Food Standards Agency,Food Standards Agency,02/10/2014,Mobile phone charges,IT Service Delivery,Vodafone Ltd,73073915,373.73,JUN- AUG MOBILE CHARGES,RG14 5FF,Admin
Food Standards Agency,Food Standards Agency,20/10/2014,Subsistence UK,Operations Assurance - Admin,Redfern Travel Ltd,092197,367.34,REDFERN TRAVEL INVOICE wk 41,BD1 3AZ,Admin
Food Standards Agency,Food Standards Agency,06/10/2014,Travel UK ,Additives,Redfern Travel Ltd,090404,366.80,REDFERN TRAVEL INVOICE wk 39,BD1 3AZ,Admin
Food Standards Agency,Food Standards Agency,10/10/2014,Travel UK ,Official Feed & Foods Controls Policy Unit,Redfern Travel Ltd,091671,359.90,REDFERN TRAVEL INVOICE wk 40,BD1 3AZ,Admin
Food Standards Agency,Food Standards Agency,10/10/2014,Subsistence UK,Area 6 South East England - Cluster 64,Redfern Travel Ltd,091671,358.68,REDFERN TRAVEL INVOICE wk 40,BD1 3AZ,Programme
Food Standards Agency,Food Standards Agency,10/10/2014,Subsistence UK,Non Meat Field Ops,Redfern Travel Ltd,091671,357.80,REDFERN TRAVEL INVOICE wk 40,BD1 3AZ,Programme
Food Standards Agency,Food Standards Agency,20/10/2014,Subsistence UK,Area 6 South East England - Cluster 63,Redfern Travel Ltd,092197,352.11,REDFERN TRAVEL INVOICE wk 41,BD1 3AZ,Programme
Food Standards Agency,Food Standards Agency,28/10/2014,Subsistence UK,Area 6 South East England - Cluster 64,Redfern Travel Ltd,092481,351.56,REDFERN TRAVEL INVOICE wk 42,BD1 3AZ,Programme
Food Standards Agency,Food Standards Agency,20/10/2014,Travel UK ,Area 4 North East England - Cluster 41,Redfern Travel Ltd,092197,351.50,REDFERN TRAVEL INVOICE wk 41,BD1 3AZ,Programme
Food Standards Agency,Food Standards Agency,20/10/2014,Subsistence UK,Area 5 South West England - Cluster 55,Redfern Travel Ltd,092197,350.19,REDFERN TRAVEL INVOICE wk 41,BD1 3AZ,Programme
Food Standards Agency,Food Standards Agency,10/10/2014,Subsistence UK,Area 2 Wales - Cluster 22,Redfern Travel Ltd,091671,349.58,REDFERN TRAVEL INVOICE wk 40,BD1 3AZ,Programme
Food Standards Agency,Food Standards Agency,06/10/2014,Subsistence UK,HR,Redfern Travel Ltd,090404,346.85,REDFERN TRAVEL INVOICE wk 39,BD1 3AZ,Admin
Food Standards Agency,Food Standards Agency,28/10/2014,Travel UK ,Food Production Branch,Redfern Travel Ltd,092481,341.79,REDFERN TRAVEL INVOICE wk 42,BD1 3AZ,Admin
Food Standards Agency,Food Standards Agency,20/10/2014,Subsistence - EC,Agricultural Process & Environmental Contaminants & Strategy,Redfern Travel Ltd,092197,341.15,REDFERN TRAVEL INVOICE wk 41,BD1 3AZ,Admin
Food Standards Agency,Food Standards Agency,28/10/2014,Travel UK ,Area 1 Scotland - Cluster 12,Redfern Travel Ltd,092481,338.65,REDFERN TRAVEL INVOICE wk 42,BD1 3AZ,Programme
Food Standards Agency,Food Standards Agency,20/10/2014,Travel UK ,Area 3 North West England - Cluster 35,Redfern Travel Ltd,092197,329.25,REDFERN TRAVEL INVOICE wk 41,BD1 3AZ,Programme
Food Standards Agency,Food Standards Agency,20/10/2014,Subsistence UK,Area 5 South West England - Cluster 53,Redfern Travel Ltd,092197,328.12,REDFERN TRAVEL INVOICE wk 41,BD1 3AZ,Programme
Food Standards Agency,Food Standards Agency,10/10/2014,Subsistence UK,Better Regulations & Sustainable Development,Redfern Travel Ltd,091671,323.84,REDFERN TRAVEL INVOICE wk 40,BD1 3AZ,Admin
Food Standards Agency,Food Standards Agency,10/10/2014,Subsistence UK,Legal Branch A,Redfern Travel Ltd,091671,321.68,REDFERN TRAVEL INVOICE wk 40,BD1 3AZ,Admin
Food Standards Agency,Food Standards Agency,20/10/2014,Subsistence - EC,Animal Feed Branch,Redfern Travel Ltd,092197,312.37,REDFERN TRAVEL INVOICE wk 41,BD1 3AZ,Admin
Food Standards Agency,Food Standards Agency,06/10/2014,Travel UK ,Area 1 Scotland - Cluster 11,Redfern Travel Ltd,090404,309.76,REDFERN TRAVEL INVOICE wk 39,BD1 3AZ,Programme
Food Standards Agency,Food Standards Agency,28/10/2014,Travel UK ,Area 3 North West England - Cluster 35,Redfern Travel Ltd,092481,306.61,REDFERN TRAVEL INVOICE wk 42,BD1 3AZ,Programme
Food Standards Agency,Food Standards Agency,10/10/2014,Travel UK ,IT Service Delivery,Redfern Travel Ltd,091671,303.71,REDFERN TRAVEL INVOICE wk 40,BD1 3AZ,Admin
Food Standards Agency,Food Standards Agency,20/10/2014,Subsistence UK,Non Meat Field Ops,Redfern Travel Ltd,092197,301.68,REDFERN TRAVEL INVOICE wk 41,BD1 3AZ,Programme
Food Standards Agency,Food Standards Agency,10/10/2014,Subsistence UK,Area 5 South West England - Cluster 54,Redfern Travel Ltd,091671,301.56,REDFERN TRAVEL INVOICE wk 40,BD1 3AZ,Programme
Food Standards Agency,Food Standards Agency,10/10/2014,Travel UK ,Radiation & Residues,Redfern Travel Ltd,091671,297.14,REDFERN TRAVEL INVOICE wk 40,BD1 3AZ,Admin
Food Standards Agency,Food Standards Agency,06/10/2014,Travel UK ,IT Information & Knowledge Management,Redfern Travel Ltd,090404,294.76,REDFERN TRAVEL INVOICE wk 39,BD1 3AZ,Admin
Food Standards Agency,Food Standards Agency,10/10/2014,Travel UK ,Area 6 South East England - Cluster 64,Redfern Travel Ltd,091671,293.62,REDFERN TRAVEL INVOICE wk 40,BD1 3AZ,Programme
Food Standards Agency,Food Standards Agency,28/10/2014,Subsistence UK,Area 6 South East England - Cluster 63,Redfern Travel Ltd,092481,289.90,REDFERN TRAVEL INVOICE wk 42,BD1 3AZ,Programme
Food Standards Agency,Food Standards Agency,20/10/2014,Subsistence UK,HR,Redfern Travel Ltd,092197,287.98,REDFERN TRAVEL INVOICE wk 41,BD1 3AZ,Admin
Food Standards Agency,Food Standards Agency,20/10/2014,Subsistence - EC,Analysis & Research Branch,Redfern Travel Ltd,092197,286.83,REDFERN TRAVEL INVOICE wk 41,BD1 3AZ,Admin
Food Standards Agency,Food Standards Agency,20/10/2014,Travel UK ,Better Regulations & Sustainable Development,Redfern Travel Ltd,092197,286.51,REDFERN TRAVEL INVOICE wk 41,BD1 3AZ,Admin
Food Standards Agency,Food Standards Agency,28/10/2014,Subsistence UK,Food Policy Private Office,Redfern Travel Ltd,092481,285.12,REDFERN TRAVEL INVOICE wk 42,BD1 3AZ,Admin
Food Standards Agency,Food Standards Agency,10/10/2014,Subsistence UK,Food Policy Private Office,Redfern Travel Ltd,091671,276.12,REDFERN TRAVEL INVOICE wk 40,BD1 3AZ,Admin
Food Standards Agency,Food Standards Agency,28/10/2014,Subsistence UK,Area 1 Scotland - Cluster 13,Redfern Travel Ltd,092481,273.12,REDFERN TRAVEL INVOICE wk 42,BD1 3AZ,Programme
Food Standards Agency,Food Standards Agency,20/10/2014,Travel UK ,Area 6 South East England - Cluster 64,Redfern Travel Ltd,092197,272.65,REDFERN TRAVEL INVOICE wk 41,BD1 3AZ,Programme
Food Standards Agency,Food Standards Agency,10/10/2014,Travel UK ,Chief Executive & Private Office,Redfern Travel Ltd,091671,269.63,REDFERN TRAVEL INVOICE wk 40,BD1 3AZ,Admin
Food Standards Agency,Food Standards Agency,06/10/2014,Travel UK ,Internal Audit,Redfern Travel Ltd,090404,268.55,REDFERN TRAVEL INVOICE wk 39,BD1 3AZ,Admin
Food Standards Agency,Food Standards Agency,20/10/2014,Subsistence - EC,Better Regulations & Sustainable Development,Redfern Travel Ltd,092197,268.51,REDFERN TRAVEL INVOICE wk 41,BD1 3AZ,Admin
Food Standards Agency,Food Standards Agency,20/10/2014,Subsistence UK,Area 5 South West England - Cluster 57,Redfern Travel Ltd,092197,265.12,REDFERN TRAVEL INVOICE wk 41,BD1 3AZ,Programme
Food Standards Agency,Food Standards Agency,06/10/2014,Travel UK ,Area 2 Wales - Cluster 22,Redfern Travel Ltd,090404,264.12,REDFERN TRAVEL INVOICE wk 39,BD1 3AZ,Programme
Food Standards Agency,Food Standards Agency,20/10/2014,Travel UK ,Procurement,Redfern Travel Ltd,092197,263.08,REDFERN TRAVEL INVOICE wk 41,BD1 3AZ,Admin
Food Standards Agency,Food Standards Agency,06/10/2014,Subsistence UK,Better Regulations & Sustainable Development,Redfern Travel Ltd,090404,260.11,REDFERN TRAVEL INVOICE wk 39,BD1 3AZ,Admin
Food Standards Agency,Food Standards Agency,28/10/2014,Subsistence UK,Better Regulations & Sustainable Development,Redfern Travel Ltd,092481,259.56,REDFERN TRAVEL INVOICE wk 42,BD1 3AZ,Admin
Food Standards Agency,Food Standards Agency,28/10/2014,Travel UK ,Area 6 South East England - Cluster 66,Redfern Travel Ltd,092481,258.77,REDFERN TRAVEL INVOICE wk 42,BD1 3AZ,Programme
Food Standards Agency,Food Standards Agency,28/10/2014,Travel UK ,Area 4 North East England - Cluster 44,Redfern Travel Ltd,092481,258.26,REDFERN TRAVEL INVOICE wk 42,BD1 3AZ,Programme
Food Standards Agency,Food Standards Agency,20/10/2014,Travel UK ,Food Production Branch,Redfern Travel Ltd,092197,254.99,REDFERN TRAVEL INVOICE wk 41,BD1 3AZ,Admin
Food Standards Agency,Food Standards Agency,06/10/2014,Subsistence UK,Consumer Protection & Commercial Support,Redfern Travel Ltd,090404,254.86,REDFERN TRAVEL INVOICE wk 39,BD1 3AZ,Admin
Food Standards Agency,Food Standards Agency,20/10/2014,Subsistence - EC,Food Hygiene Policy Branch,Redfern Travel Ltd,092197,254.02,REDFERN TRAVEL INVOICE wk 41,BD1 3AZ,Admin
Food Standards Agency,Food Standards Agency,06/10/2014,Subsistence UK,Animal Feed     ,Redfern Travel Ltd,090404,254.01,REDFERN TRAVEL INVOICE wk 39,BD1 3AZ,Admin
Food Standards Agency,Food Standards Agency,28/10/2014,Subsistence UK,Area 5 South West England - Cluster 52,Redfern Travel Ltd,092481,253.56,REDFERN TRAVEL INVOICE wk 42,BD1 3AZ,Programme
Food Standards Agency,Food Standards Agency,06/10/2014,Travel UK ,Chief Scientist,Redfern Travel Ltd,090404,253.35,REDFERN TRAVEL INVOICE wk 39,BD1 3AZ,Admin
Food Standards Agency,Food Standards Agency,06/10/2014,Travel UK ,Security & Estates,Redfern Travel Ltd,090404,252.89,REDFERN TRAVEL INVOICE wk 39,BD1 3AZ,Admin
Food Standards Agency,Food Standards Agency,28/10/2014,Subsistence - EC,Additives,Redfern Travel Ltd,092481,252.52,REDFERN TRAVEL INVOICE wk 42,BD1 3AZ,Admin
Food Standards Agency,Food Standards Agency,10/10/2014,Travel UK ,Agricultural Process & Environmental Contaminants & Strategy,Redfern Travel Ltd,091671,251.90,REDFERN TRAVEL INVOICE wk 40,BD1 3AZ,Admin
Food Standards Agency,Food Standards Agency,20/10/2014,Travel UK ,Area 4 North East England - Cluster 47,Redfern Travel Ltd,092197,247.63,REDFERN TRAVEL INVOICE wk 41,BD1 3AZ,Programme
Food Standards Agency,Food Standards Agency,28/10/2014,Travel UK ,Legal Branch A,Redfern Travel Ltd,092481,245.27,REDFERN TRAVEL INVOICE wk 42,BD1 3AZ,Admin
Food Standards Agency,Food Standards Agency,28/10/2014,Travel UK ,Internal Audit,Redfern Travel Ltd,092481,245.12,REDFERN TRAVEL INVOICE wk 42,BD1 3AZ,Admin
Food Standards Agency,Food Standards Agency,20/10/2014,Subsistence UK,Area 6 South East England - Cluster 62,Redfern Travel Ltd,092197,243.84,REDFERN TRAVEL INVOICE wk 41,BD1 3AZ,Programme
Food Standards Agency,Food Standards Agency,28/10/2014,Subsistence UK,Finance Director & Branch,Redfern Travel Ltd,092481,241.56,REDFERN TRAVEL INVOICE wk 42,BD1 3AZ,Admin
Food Standards Agency,Food Standards Agency,20/10/2014,Travel UK ,Additives,Redfern Travel Ltd,092197,241.11,REDFERN TRAVEL INVOICE wk 41,BD1 3AZ,Admin
Food Standards Agency,Food Standards Agency,28/10/2014,Travel UK ,Food Hygiene Policy Branch,Redfern Travel Ltd,092481,239.95,REDFERN TRAVEL INVOICE wk 42,BD1 3AZ,Admin
Food Standards Agency,Food Standards Agency,20/10/2014,Travel UK ,Procurement,Redfern Travel Ltd,092197,239.02,REDFERN TRAVEL INVOICE wk 41,BD1 3AZ,Admin
Food Standards Agency,Food Standards Agency,10/10/2014,Travel UK ,Food Policy Private Office,Redfern Travel Ltd,091671,238.82,REDFERN TRAVEL INVOICE wk 40,BD1 3AZ,Admin
Food Standards Agency,Food Standards Agency,28/10/2014,Travel UK ,Area 4 North East England - Cluster 41,Redfern Travel Ltd,092481,228.72,REDFERN TRAVEL INVOICE wk 42,BD1 3AZ,Programme
Food Standards Agency,Food Standards Agency,10/10/2014,Travel UK ,Analysis & Research Branch,Redfern Travel Ltd,091671,227.24,REDFERN TRAVEL INVOICE wk 40,BD1 3AZ,Admin
Food Standards Agency,Food Standards Agency,06/10/2014,Travel UK ,EU Regulatory Reform Branch,Redfern Travel Ltd,090404,225.90,REDFERN TRAVEL INVOICE wk 39,BD1 3AZ,Admin
Food Standards Agency,Food Standards Agency,20/10/2014,Travel UK ,EU Regulatory Reform Branch,Redfern Travel Ltd,092197,225.90,REDFERN TRAVEL INVOICE wk 41,BD1 3AZ,Admin
Food Standards Agency,Food Standards Agency,10/10/2014,Subsistence UK,Area 4 North East England - Cluster 46,Redfern Travel Ltd,091671,225.12,REDFERN TRAVEL INVOICE wk 40,BD1 3AZ,Programme
Food Standards Agency,Food Standards Agency,20/10/2014,Subsistence UK,IT Service Delivery,Redfern Travel Ltd,092197,223.77,REDFERN TRAVEL INVOICE wk 41,BD1 3AZ,Admin
Food Standards Agency,Food Standards Agency,20/10/2014,Travel UK ,Area 5 South West England - Cluster 52,Redfern Travel Ltd,092197,222.37,REDFERN TRAVEL INVOICE wk 41,BD1 3AZ,Programme
Food Standards Agency,Food Standards Agency,28/10/2014,Subsistence UK,Area 1 Scotland - Cluster 11,Redfern Travel Ltd,092481,221.46,REDFERN TRAVEL INVOICE wk 42,BD1 3AZ,Programme
Food Standards Agency,Food Standards Agency,20/10/2014,Travel UK ,Non Meat Field Ops,Redfern Travel Ltd,092197,220.32,REDFERN TRAVEL INVOICE wk 41,BD1 3AZ,Programme
Food Standards Agency,Food Standards Agency,06/10/2014,Travel UK ,Procurement,Redfern Travel Ltd,090404,218.59,REDFERN TRAVEL INVOICE wk 39,BD1 3AZ,Admin
Food Standards Agency,Food Standards Agency,20/10/2014,Travel UK ,Area 5 South West England - Cluster 55,Redfern Travel Ltd,092197,213.93,REDFERN TRAVEL INVOICE wk 41,BD1 3AZ,Programme
Food Standards Agency,Food Standards Agency,28/10/2014,Travel UK ,Area 5 South West England - Cluster 51,Redfern Travel Ltd,092481,213.65,REDFERN TRAVEL INVOICE wk 42,BD1 3AZ,Programme
Food Standards Agency,Food Standards Agency,06/10/2014,Travel UK ,Operations Assurance - Admin,Redfern Travel Ltd,090404,213.17,REDFERN TRAVEL INVOICE wk 39,BD1 3AZ,Admin
Food Standards Agency,Food Standards Agency,10/10/2014,Subsistence UK,Area 1 Scotland - Cluster 11,Redfern Travel Ltd,091671,207.77,REDFERN TRAVEL INVOICE wk 40,BD1 3AZ,Programme
Food Standards Agency,Food Standards Agency,06/10/2014,Travel UK ,Food Production Branch,Redfern Travel Ltd,090404,205.90,REDFERN TRAVEL INVOICE wk 39,BD1 3AZ,Admin
Food Standards Agency,Food Standards Agency,06/10/2014,Travel UK ,Area 5 South West England - Cluster 54,Redfern Travel Ltd,090404,205.42,REDFERN TRAVEL INVOICE wk 39,BD1 3AZ,Programme
Food Standards Agency,Food Standards Agency,28/10/2014,Subsistence UK,Comms Directors Office,Redfern Travel Ltd,092481,202.86,REDFERN TRAVEL INVOICE wk 42,BD1 3AZ,Admin
Food Standards Agency,Food Standards Agency,06/10/2014,Subsistence UK,Area 6 South East England - Cluster 64,Redfern Travel Ltd,090404,202.77,REDFERN TRAVEL INVOICE wk 39,BD1 3AZ,Programme
Food Standards Agency,Food Standards Agency,28/10/2014,Subsistence UK,Area 5 South West England - Cluster 53,Redfern Travel Ltd,092481,201.56,REDFERN TRAVEL INVOICE wk 42,BD1 3AZ,Programme
Food Standards Agency,Food Standards Agency,20/10/2014,Subsistence UK,Internal Audit,Redfern Travel Ltd,092197,201.06,REDFERN TRAVEL INVOICE wk 41,BD1 3AZ,Admin
Food Standards Agency,Food Standards Agency,10/10/2014,Subsistence UK,Area 5 South West England - Cluster 55,Redfern Travel Ltd,091671,200.86,REDFERN TRAVEL INVOICE wk 40,BD1 3AZ,Programme
Food Standards Agency,Food Standards Agency,06/10/2014,Subsistence UK,Area 3 North West England - Cluster 33,Redfern Travel Ltd,090404,199.56,REDFERN TRAVEL INVOICE wk 39,BD1 3AZ,Programme
Food Standards Agency,Food Standards Agency,28/10/2014,Travel UK ,Procurement,Redfern Travel Ltd,092481,199.12,REDFERN TRAVEL INVOICE wk 42,BD1 3AZ,Admin
Food Standards Agency,Food Standards Agency,20/10/2014,Subsistence - EC,Food Production Branch,Redfern Travel Ltd,092197,198.37,REDFERN TRAVEL INVOICE wk 41,BD1 3AZ,Admin
Food Standards Agency,Food Standards Agency,28/10/2014,Travel UK ,Chief Executive & Private Office,Redfern Travel Ltd,092481,197.99,REDFERN TRAVEL INVOICE wk 42,BD1 3AZ,Admin
Food Standards Agency,Food Standards Agency,06/10/2014,Subsistence UK,Area 6 South East England - Cluster 62,Redfern Travel Ltd,090404,197.94,REDFERN TRAVEL INVOICE wk 39,BD1 3AZ,Programme
Food Standards Agency,Food Standards Agency,06/10/2014,Subsistence UK,Finance Director & Branch,Redfern Travel Ltd,090404,195.56,REDFERN TRAVEL INVOICE wk 39,BD1 3AZ,Admin
Food Standards Agency,Food Standards Agency,28/10/2014,Travel UK ,Consumer Protection & Commercial Support,Redfern Travel Ltd,092481,191.16,REDFERN TRAVEL INVOICE wk 42,BD1 3AZ,Admin
Food Standards Agency,Food Standards Agency,06/10/2014,Subsistence UK,Food Policy Private Office,Redfern Travel Ltd,090404,191.12,REDFERN TRAVEL INVOICE wk 39,BD1 3AZ,Admin
Food Standards Agency,Food Standards Agency,20/10/2014,Subsistence UK,Food Policy Private Office,Redfern Travel Ltd,092197,191.12,REDFERN TRAVEL INVOICE wk 41,BD1 3AZ,Admin
Food Standards Agency,Food Standards Agency,20/10/2014,Travel UK ,Area 6 South East England - Cluster 61,Redfern Travel Ltd,092197,190.85,REDFERN TRAVEL INVOICE wk 41,BD1 3AZ,Programme
Food Standards Agency,Food Standards Agency,10/10/2014,Travel UK ,Area 6 South East England - Cluster 63,Redfern Travel Ltd,091671,190.83,REDFERN TRAVEL INVOICE wk 40,BD1 3AZ,Programme
Food Standards Agency,Food Standards Agency,06/10/2014,Subsistence UK,Area 6 South East England - Cluster 61,Redfern Travel Ltd,090404,190.56,REDFERN TRAVEL INVOICE wk 39,BD1 3AZ,Programme
Food Standards Agency,Food Standards Agency,28/10/2014,Travel UK ,Analysis & Research Branch,Redfern Travel Ltd,092481,190.36,REDFERN TRAVEL INVOICE wk 42,BD1 3AZ,Admin
Food Standards Agency,Food Standards Agency,20/10/2014,Subsistence UK,Better Regulations & Sustainable Development,Redfern Travel Ltd,092197,189.56,REDFERN TRAVEL INVOICE wk 41,BD1 3AZ,Admin
Food Standards Agency,Food Standards Agency,20/10/2014,Subsistence - EC,Hygiene & Microbiology Division HoD,Redfern Travel Ltd,092197,189.18,REDFERN TRAVEL INVOICE wk 41,BD1 3AZ,Admin
Food Standards Agency,Food Standards Agency,20/10/2014,Travel UK ,Area 5 South West England - Cluster 53,Redfern Travel Ltd,092197,187.54,REDFERN TRAVEL INVOICE wk 41,BD1 3AZ,Programme
Food Standards Agency,Food Standards Agency,20/10/2014,Subsistence UK,Area 1 Scotland - Cluster 11,Redfern Travel Ltd,092197,187.34,REDFERN TRAVEL INVOICE wk 41,BD1 3AZ,Programme
Food Standards Agency,Food Standards Agency,06/10/2014,Subsistence UK,Area 3 North West England - Cluster 36,Redfern Travel Ltd,090404,186.86,REDFERN TRAVEL INVOICE wk 39,BD1 3AZ,Programme
Food Standards Agency,Food Standards Agency,10/10/2014,Subsistence UK,Finance Director & Branch,Redfern Travel Ltd,091671,183.56,REDFERN TRAVEL INVOICE wk 40,BD1 3AZ,Admin
Food Standards Agency,Food Standards Agency,06/10/2014,Travel UK ,Area 2 Wales - Cluster 23,Redfern Travel Ltd,090404,182.11,REDFERN TRAVEL INVOICE wk 39,BD1 3AZ,Programme
Food Standards Agency,Food Standards Agency,10/10/2014,Subsistence UK,Comms Directors Office,Redfern Travel Ltd,091671,181.77,REDFERN TRAVEL INVOICE wk 40,BD1 3AZ,Admin
Food Standards Agency,Food Standards Agency,10/10/2014,Travel UK ,Consumer Protection & Commercial Support,Redfern Travel Ltd,091671,180.90,REDFERN TRAVEL INVOICE wk 40,BD1 3AZ,Admin
Food Standards Agency,Food Standards Agency,20/10/2014,Travel UK ,Food Hygiene Policy Branch,Redfern Travel Ltd,092197,180.90,REDFERN TRAVEL INVOICE wk 41,BD1 3AZ,Admin
Food Standards Agency,Food Standards Agency,10/10/2014,Travel UK ,Animal Feed Branch,Redfern Travel Ltd,091671,180.90,REDFERN TRAVEL INVOICE wk 40,BD1 3AZ,Admin
Food Standards Agency,Food Standards Agency,20/10/2014,Travel UK ,Animal Feed Branch,Redfern Travel Ltd,092197,180.90,REDFERN TRAVEL INVOICE wk 41,BD1 3AZ,Admin
Food Standards Agency,Food Standards Agency,20/10/2014,Travel UK ,Area 5 South West England - Cluster 51,Redfern Travel Ltd,092197,176.78,REDFERN TRAVEL INVOICE wk 41,BD1 3AZ,Programme
Food Standards Agency,Food Standards Agency,24/10/2014,IT Software Licences,IT Service Delivery,E S R I (UK) Ltd,121481,175.00,PO 419285 RENEWAL QUOTE 023760 MAINTENANCE RENEWAL UNTIL 31/10/15,HP21 7QG,Admin
Food Standards Agency,Food Standards Agency,20/10/2014,Travel UK ,Area 6 South East England - Cluster 62,Redfern Travel Ltd,092197,169.45,REDFERN TRAVEL INVOICE wk 41,BD1 3AZ,Programme
Food Standards Agency,Food Standards Agency,20/10/2014,Subsistence UK,Area 6 South East England - Cluster 66,Redfern Travel Ltd,092197,168.78,REDFERN TRAVEL INVOICE wk 41,BD1 3AZ,Programme
Food Standards Agency,Food Standards Agency,06/10/2014,Travel UK ,Area 5 South West England - Cluster 52,Redfern Travel Ltd,090404,167.08,REDFERN TRAVEL INVOICE wk 39,BD1 3AZ,Programme
Food Standards Agency,Food Standards Agency,10/10/2014,Subsistence UK,Area 6 South East England - Cluster 63,Redfern Travel Ltd,091671,166.56,REDFERN TRAVEL INVOICE wk 40,BD1 3AZ,Programme
Food Standards Agency,Food Standards Agency,28/10/2014,Travel UK ,Area 1 Scotland - Cluster 15,Redfern Travel Ltd,092481,165.77,REDFERN TRAVEL INVOICE wk 42,BD1 3AZ,Programme
Food Standards Agency,Food Standards Agency,20/10/2014,Travel UK ,IT Service Delivery,Redfern Travel Ltd,092197,165.30,REDFERN TRAVEL INVOICE wk 41,BD1 3AZ,Admin
Food Standards Agency,Food Standards Agency,20/10/2014,Subsistence UK,Area 6 South East England - Cluster 64,Redfern Travel Ltd,092197,163.12,REDFERN TRAVEL INVOICE wk 41,BD1 3AZ,Programme
Food Standards Agency,Food Standards Agency,28/10/2014,Subsistence UK,Operations Local Delivery ,Redfern Travel Ltd,092481,163.12,REDFERN TRAVEL INVOICE wk 42,BD1 3AZ,Admin
Food Standards Agency,Food Standards Agency,28/10/2014,Travel UK ,Area 4 North East England - Cluster 46,Redfern Travel Ltd,092481,162.69,REDFERN TRAVEL INVOICE wk 42,BD1 3AZ,Programme
Food Standards Agency,Food Standards Agency,10/10/2014,Travel UK ,Area 5 South West England - Cluster 57,Redfern Travel Ltd,091671,162.23,REDFERN TRAVEL INVOICE wk 40,BD1 3AZ,Programme
Food Standards Agency,Food Standards Agency,20/10/2014,Subsistence - EC,Internal Audit,Redfern Travel Ltd,092197,161.67,REDFERN TRAVEL INVOICE wk 41,BD1 3AZ,Admin
Food Standards Agency,Food Standards Agency,28/10/2014,Travel UK ,Additives,Redfern Travel Ltd,092481,160.22,REDFERN TRAVEL INVOICE wk 42,BD1 3AZ,Admin
Food Standards Agency,Food Standards Agency,10/10/2014,Travel UK ,Area 4 North East England - Cluster 43,Redfern Travel Ltd,091671,160.02,REDFERN TRAVEL INVOICE wk 40,BD1 3AZ,Programme
Food Standards Agency,Food Standards Agency,20/10/2014,Travel UK ,Animal Feed     ,Redfern Travel Ltd,092197,158.07,REDFERN TRAVEL INVOICE wk 41,BD1 3AZ,Admin
Food Standards Agency,Food Standards Agency,06/10/2014,ASD support services,IT Service Delivery,Capita Secure Information Solutions Ltd,93916663,157.78,PO 418863 FSA-496A AVH RE-STACK JULY/AUG 14),SN14 0TW,Admin
Food Standards Agency,Food Standards Agency,06/10/2014,Subsistence UK,Area 4 North East England - Cluster 48,Redfern Travel Ltd,090404,156.62,REDFERN TRAVEL INVOICE wk 39,BD1 3AZ,Programme
Food Standards Agency,Food Standards Agency,28/10/2014,Travel UK ,Area 3 North West England - Cluster 33,Redfern Travel Ltd,092481,155.68,REDFERN TRAVEL INVOICE wk 42,BD1 3AZ,Programme
Food Standards Agency,Food Standards Agency,28/10/2014,Subsistence UK,Area 2 Wales - Cluster 23,Redfern Travel Ltd,092481,155.62,REDFERN TRAVEL INVOICE wk 42,BD1 3AZ,Programme
Food Standards Agency,Food Standards Agency,10/10/2014,Travel UK ,Procurement,Redfern Travel Ltd,091671,153.84,REDFERN TRAVEL INVOICE wk 40,BD1 3AZ,Admin
Food Standards Agency,Food Standards Agency,10/10/2014,Travel UK ,Area 4 North East England - Cluster 46,Redfern Travel Ltd,091671,153.18,REDFERN TRAVEL INVOICE wk 40,BD1 3AZ,Programme
Food Standards Agency,Food Standards Agency,06/10/2014,Subsistence UK,Area 5 South West England - Cluster 53,Redfern Travel Ltd,090404,153.12,REDFERN TRAVEL INVOICE wk 39,BD1 3AZ,Programme
Food Standards Agency,Food Standards Agency,10/10/2014,Subsistence UK,Area 5 South West England - Cluster 53,Redfern Travel Ltd,091671,152.12,REDFERN TRAVEL INVOICE wk 40,BD1 3AZ,Programme
Food Standards Agency,Food Standards Agency,10/10/2014,Subsistence UK,Area 2 Wales - Cluster 21,Redfern Travel Ltd,091671,149.56,REDFERN TRAVEL INVOICE wk 40,BD1 3AZ,Programme
Food Standards Agency,Food Standards Agency,28/10/2014,Subsistence UK,Area 4 North East England - Cluster 47,Redfern Travel Ltd,092481,148.56,REDFERN TRAVEL INVOICE wk 42,BD1 3AZ,Programme
Food Standards Agency,Food Standards Agency,28/10/2014,Subsistence - EC,Agricultural Process & Environmental Contaminants & Strategy,Redfern Travel Ltd,092481,145.72,REDFERN TRAVEL INVOICE wk 42,BD1 3AZ,Admin
Food Standards Agency,Food Standards Agency,28/10/2014,Subsistence UK,IT Service Delivery,Redfern Travel Ltd,092481,145.56,REDFERN TRAVEL INVOICE wk 42,BD1 3AZ,Admin
Food Standards Agency,Food Standards Agency,20/10/2014,Travel UK ,Area 5 South West England - Cluster 56,Redfern Travel Ltd,092197,145.06,REDFERN TRAVEL INVOICE wk 41,BD1 3AZ,Programme
Food Standards Agency,Food Standards Agency,10/10/2014,Subsistence UK,Food Hygiene Policy Branch,Redfern Travel Ltd,091671,144.06,REDFERN TRAVEL INVOICE wk 40,BD1 3AZ,Admin
Food Standards Agency,Food Standards Agency,20/10/2014,Subsistence - EC,Radiation & Residues,Redfern Travel Ltd,092197,142.28,REDFERN TRAVEL INVOICE wk 41,BD1 3AZ,Admin
Food Standards Agency,Food Standards Agency,28/10/2014,Subsistence UK,Area 6 South East England - Cluster 62,Redfern Travel Ltd,092481,141.12,REDFERN TRAVEL INVOICE wk 42,BD1 3AZ,Programme
Food Standards Agency,Food Standards Agency,20/10/2014,Travel UK ,Area 5 South West England - Cluster 57,Redfern Travel Ltd,092197,139.31,REDFERN TRAVEL INVOICE wk 41,BD1 3AZ,Programme
Food Standards Agency,Food Standards Agency,20/10/2014,Travel UK ,Area 1 Scotland - Cluster 15,Redfern Travel Ltd,092197,137.73,REDFERN TRAVEL INVOICE wk 41,BD1 3AZ,Programme
Food Standards Agency,Food Standards Agency,28/10/2014,Subsistence UK,Area 4 North East England - Cluster 41,Redfern Travel Ltd,092481,137.56,REDFERN TRAVEL INVOICE wk 42,BD1 3AZ,Programme
Food Standards Agency,Food Standards Agency,06/10/2014,Travel UK ,Food Hygiene Policy Branch,Redfern Travel Ltd,090404,137.41,REDFERN TRAVEL INVOICE wk 39,BD1 3AZ,Admin
Food Standards Agency,Food Standards Agency,20/10/2014,Subsistence - EC,Chief Scientist,Redfern Travel Ltd,092197,136.78,REDFERN TRAVEL INVOICE wk 41,BD1 3AZ,Admin
Food Standards Agency,Food Standards Agency,24/10/2014,IT Software Licences,IT Service Delivery,E S R I (UK) Ltd,121481,136.00,PO 419285 RENEWAL QUOTE 023760 MAINTENANCE RENEWAL UNTIL 31/10/15,HP21 7QG,Admin
Food Standards Agency,Food Standards Agency,10/10/2014,Travel UK ,Security & Estates,Redfern Travel Ltd,091671,134.75,REDFERN TRAVEL INVOICE wk 40,BD1 3AZ,Admin
Food Standards Agency,Food Standards Agency,20/10/2014,Travel UK ,Legal Branch A,Redfern Travel Ltd,092197,133.65,REDFERN TRAVEL INVOICE wk 41,BD1 3AZ,Admin
Food Standards Agency,Food Standards Agency,20/10/2014,Travel UK ,Area 2 Wales - Cluster 22,Redfern Travel Ltd,092197,133.42,REDFERN TRAVEL INVOICE wk 41,BD1 3AZ,Programme
Food Standards Agency,Food Standards Agency,20/10/2014,Subsistence UK,Animal Feed Branch,Redfern Travel Ltd,092197,133.04,REDFERN TRAVEL INVOICE wk 41,BD1 3AZ,Admin
Food Standards Agency,Food Standards Agency,20/10/2014,Subsistence - EC,Official Feed & Foods Controls Policy Unit,Redfern Travel Ltd,092197,131.69,REDFERN TRAVEL INVOICE wk 41,BD1 3AZ,Admin
Food Standards Agency,Food Standards Agency,06/10/2014,Travel UK ,Animal Feed     ,Redfern Travel Ltd,090404,130.90,REDFERN TRAVEL INVOICE wk 39,BD1 3AZ,Admin
Food Standards Agency,Food Standards Agency,28/10/2014,Subsistence - EC,Area 5 South West England - Cluster 57,Redfern Travel Ltd,092481,130.56,REDFERN TRAVEL INVOICE wk 42,BD1 3AZ,Programme
Food Standards Agency,Food Standards Agency,28/10/2014,Subsistence UK,Consumer Protection & Commercial Support,Redfern Travel Ltd,092481,130.56,REDFERN TRAVEL INVOICE wk 42,BD1 3AZ,Admin
Food Standards Agency,Food Standards Agency,06/10/2014,Subsistence UK,European & International Strategy,Redfern Travel Ltd,090404,130.56,REDFERN TRAVEL INVOICE wk 39,BD1 3AZ,Admin
Food Standards Agency,Food Standards Agency,20/10/2014,Travel UK ,Area 6 South East England - Cluster 65,Redfern Travel Ltd,092197,129.39,REDFERN TRAVEL INVOICE wk 41,BD1 3AZ,Programme
Food Standards Agency,Food Standards Agency,06/10/2014,Subsistence UK,Food Production Branch,Redfern Travel Ltd,090404,127.56,REDFERN TRAVEL INVOICE wk 39,BD1 3AZ,Admin
Food Standards Agency,Food Standards Agency,20/10/2014,Subsistence - EC,Novel Food Unit,Redfern Travel Ltd,092197,127.25,REDFERN TRAVEL INVOICE wk 41,BD1 3AZ,Admin
Food Standards Agency,Food Standards Agency,20/10/2014,International Travel,European & International Strategy,Redfern Travel Ltd,092197,126.90,REDFERN TRAVEL INVOICE wk 41,BD1 3AZ,Admin
Food Standards Agency,Food Standards Agency,06/10/2014,Travel UK ,Non Meat Field Ops,Redfern Travel Ltd,090404,125.76,REDFERN TRAVEL INVOICE wk 39,BD1 3AZ,Programme
Food Standards Agency,Food Standards Agency,20/10/2014,Subsistence - EC,EU Regulatory Reform Branch,Redfern Travel Ltd,092197,124.89,REDFERN TRAVEL INVOICE wk 41,BD1 3AZ,Admin
Food Standards Agency,Food Standards Agency,06/10/2014,Travel UK ,Procurement,Redfern Travel Ltd,090404,124.12,REDFERN TRAVEL INVOICE wk 39,BD1 3AZ,Admin
Food Standards Agency,Food Standards Agency,10/10/2014,Subsistence UK,Security & Estates,Redfern Travel Ltd,091671,120.56,REDFERN TRAVEL INVOICE wk 40,BD1 3AZ,Admin
Food Standards Agency,Food Standards Agency,28/10/2014,Subsistence UK,Security & Estates,Redfern Travel Ltd,092481,120.56,REDFERN TRAVEL INVOICE wk 42,BD1 3AZ,Admin
Food Standards Agency,Food Standards Agency,06/10/2014,Travel UK ,Area 4 North East England - Cluster 47,Redfern Travel Ltd,090404,115.38,REDFERN TRAVEL INVOICE wk 39,BD1 3AZ,Programme
Food Standards Agency,Food Standards Agency,28/10/2014,Travel UK ,Area 4 North East England - Cluster 47,Redfern Travel Ltd,092481,115.35,REDFERN TRAVEL INVOICE wk 42,BD1 3AZ,Programme
Food Standards Agency,Food Standards Agency,20/10/2014,Subsistence UK,Area 2 Wales - Cluster 22,Redfern Travel Ltd,092197,113.12,REDFERN TRAVEL INVOICE wk 41,BD1 3AZ,Programme
Food Standards Agency,Food Standards Agency,28/10/2014,Subsistence - EC,Animal Feed     ,Redfern Travel Ltd,092481,113.04,REDFERN TRAVEL INVOICE wk 42,BD1 3AZ,Admin
Food Standards Agency,Food Standards Agency,06/10/2014,Subsistence UK,Area 1 Scotland - Cluster 12,Redfern Travel Ltd,090404,110.40,REDFERN TRAVEL INVOICE wk 39,BD1 3AZ,Programme
Food Standards Agency,Food Standards Agency,06/10/2014,Subsistence UK,Area 1 Scotland - Cluster 13,Redfern Travel Ltd,090404,110.40,REDFERN TRAVEL INVOICE wk 39,BD1 3AZ,Programme
Food Standards Agency,Food Standards Agency,06/10/2014,Subsistence UK,Area 1 Scotland - Cluster 15,Redfern Travel Ltd,090404,110.40,REDFERN TRAVEL INVOICE wk 39,BD1 3AZ,Programme
Food Standards Agency,Food Standards Agency,10/10/2014,Travel UK ,Area 2 Wales - Cluster 23,Redfern Travel Ltd,091671,106.89,REDFERN TRAVEL INVOICE wk 40,BD1 3AZ,Programme
Food Standards Agency,Food Standards Agency,06/10/2014,International Subsistence,Operational Delivery,Redfern Travel Ltd,090404,106.06,REDFERN TRAVEL INVOICE wk 39,BD1 3AZ,Programme
Food Standards Agency,Food Standards Agency,20/10/2014,Travel UK ,Chemical Risk Assessment Unit,Redfern Travel Ltd,092197,104.23,REDFERN TRAVEL INVOICE wk 41,BD1 3AZ,Admin
Food Standards Agency,Food Standards Agency,28/10/2014,Travel UK ,Area 5 South West England - Cluster 54,Redfern Travel Ltd,092481,103.84,REDFERN TRAVEL INVOICE wk 42,BD1 3AZ,Programme
Food Standards Agency,Food Standards Agency,06/10/2014,International Subsistence,Analysis & Research Branch,Redfern Travel Ltd,090404,103.60,REDFERN TRAVEL INVOICE wk 39,BD1 3AZ,Admin
Food Standards Agency,Food Standards Agency,20/10/2014,Subsistence UK,Area 1 Scotland - Cluster 12,Redfern Travel Ltd,092197,102.21,REDFERN TRAVEL INVOICE wk 41,BD1 3AZ,Programme
Food Standards Agency,Food Standards Agency,06/10/2014,Subsistence UK,Comms Directors Office,Redfern Travel Ltd,090404,102.21,REDFERN TRAVEL INVOICE wk 39,BD1 3AZ,Admin
Food Standards Agency,Food Standards Agency,28/10/2014,Subsistence UK,Chemical Risk Assessment Unit,Redfern Travel Ltd,092481,102.21,REDFERN TRAVEL INVOICE wk 42,BD1 3AZ,Admin
Food Standards Agency,Food Standards Agency,10/10/2014,Subsistence UK,HR,Redfern Travel Ltd,091671,102.21,REDFERN TRAVEL INVOICE wk 40,BD1 3AZ,Admin
Food Standards Agency,Food Standards Agency,06/10/2014,Subsistence UK,IT Service Delivery,Redfern Travel Ltd,090404,102.21,REDFERN TRAVEL INVOICE wk 39,BD1 3AZ,Admin
Food Standards Agency,Food Standards Agency,28/10/2014,Subsistence UK,Internal Audit,Redfern Travel Ltd,092481,102.21,REDFERN TRAVEL INVOICE wk 42,BD1 3AZ,Admin
Food Standards Agency,Food Standards Agency,10/10/2014,Travel UK ,Legal Branch A,Redfern Travel Ltd,091671,101.66,REDFERN TRAVEL INVOICE wk 40,BD1 3AZ,Admin
Food Standards Agency,Food Standards Agency,06/10/2014,Subsistence UK,Area 4 North East England - Cluster 46,Redfern Travel Ltd,090404,100.56,REDFERN TRAVEL INVOICE wk 39,BD1 3AZ,Programme
Food Standards Agency,Food Standards Agency,28/10/2014,Subsistence UK,Area 5 South West England - Cluster 56,Redfern Travel Ltd,092481,100.56,REDFERN TRAVEL INVOICE wk 42,BD1 3AZ,Programme
Food Standards Agency,Food Standards Agency,20/10/2014,Travel UK ,Area 1 Scotland - Cluster 12,Redfern Travel Ltd,092197,98.75,REDFERN TRAVEL INVOICE wk 41,BD1 3AZ,Programme
Food Standards Agency,Food Standards Agency,06/10/2014,Travel UK ,Area 5 South West England - Cluster 53,Redfern Travel Ltd,090404,97.87,REDFERN TRAVEL INVOICE wk 39,BD1 3AZ,Programme
Food Standards Agency,Food Standards Agency,28/10/2014,Travel UK ,Area 5 South West England - Cluster 53,Redfern Travel Ltd,092481,97.87,REDFERN TRAVEL INVOICE wk 42,BD1 3AZ,Programme
Food Standards Agency,Food Standards Agency,06/10/2014,Subsistence UK,Area 5 South West England - Cluster 54,Redfern Travel Ltd,090404,96.56,REDFERN TRAVEL INVOICE wk 39,BD1 3AZ,Programme
Food Standards Agency,Food Standards Agency,20/10/2014,Subsistence UK,IT Information & Knowledge Management,Redfern Travel Ltd,092197,96.56,REDFERN TRAVEL INVOICE wk 41,BD1 3AZ,Admin
Food Standards Agency,Food Standards Agency,06/10/2014,Subsistence UK,Non Meat Field Ops,Redfern Travel Ltd,090404,96.06,REDFERN TRAVEL INVOICE wk 39,BD1 3AZ,Programme
Food Standards Agency,Food Standards Agency,10/10/2014,Travel UK ,Area 6 South East England - Cluster 65,Redfern Travel Ltd,091671,94.91,REDFERN TRAVEL INVOICE wk 40,BD1 3AZ,Programme
Food Standards Agency,Food Standards Agency,10/10/2014,Travel UK ,Area 1 Scotland - Cluster 13,Redfern Travel Ltd,091671,92.87,REDFERN TRAVEL INVOICE wk 40,BD1 3AZ,Programme
Food Standards Agency,Food Standards Agency,20/10/2014,Subsistence - EC,Consumer Protection & Commercial Support,Redfern Travel Ltd,092197,92.51,REDFERN TRAVEL INVOICE wk 41,BD1 3AZ,Admin
Food Standards Agency,Food Standards Agency,06/10/2014,Car hire expenses (short term),Consumer Protection & Commercial Support,Redfern Travel Ltd,090404,90.84,REDFERN TRAVEL INVOICE wk 39,BD1 3AZ,Admin
Food Standards Agency,Food Standards Agency,20/10/2014,Subsistence UK,Analysis & Research Branch,Redfern Travel Ltd,092197,90.56,REDFERN TRAVEL INVOICE wk 41,BD1 3AZ,Admin
Food Standards Agency,Food Standards Agency,06/10/2014,Travel UK ,Area 5 South West England - Cluster 51,Redfern Travel Ltd,090404,89.96,REDFERN TRAVEL INVOICE wk 39,BD1 3AZ,Programme
Food Standards Agency,Food Standards Agency,10/10/2014,Travel UK ,Area 5 South West England - Cluster 53,Redfern Travel Ltd,091671,89.67,REDFERN TRAVEL INVOICE wk 40,BD1 3AZ,Programme
Food Standards Agency,Food Standards Agency,28/10/2014,Travel UK ,FSA Board,Redfern Travel Ltd,092481,89.01,REDFERN TRAVEL INVOICE wk 42,BD1 3AZ,Admin
Food Standards Agency,Food Standards Agency,06/10/2014,Travel UK ,Analysis & Research Branch,Redfern Travel Ltd,090404,88.97,REDFERN TRAVEL INVOICE wk 39,BD1 3AZ,Admin
Food Standards Agency,Food Standards Agency,06/10/2014,Subsistence UK,Area 3 North West England - Cluster 32,Redfern Travel Ltd,090404,88.46,REDFERN TRAVEL INVOICE wk 39,BD1 3AZ,Programme
Food Standards Agency,Food Standards Agency,06/10/2014,Subsistence UK,Area 2 Wales - Cluster 23,Redfern Travel Ltd,090404,86.56,REDFERN TRAVEL INVOICE wk 39,BD1 3AZ,Programme
Food Standards Agency,Food Standards Agency,10/10/2014,Subsistence UK,Area 2 Wales - Cluster 23,Redfern Travel Ltd,091671,86.56,REDFERN TRAVEL INVOICE wk 40,BD1 3AZ,Programme
Food Standards Agency,Food Standards Agency,20/10/2014,Subsistence UK,Chemical Risk Assessment Unit,Redfern Travel Ltd,092197,86.56,REDFERN TRAVEL INVOICE wk 41,BD1 3AZ,Admin
Food Standards Agency,Food Standards Agency,28/10/2014,Subsistence UK,Area 3 North West England - Cluster 32,Redfern Travel Ltd,092481,86.31,REDFERN TRAVEL INVOICE wk 42,BD1 3AZ,Programme
Food Standards Agency,Food Standards Agency,20/10/2014,Travel UK ,Security & Estates,Redfern Travel Ltd,092197,85.51,REDFERN TRAVEL INVOICE wk 41,BD1 3AZ,Admin
Food Standards Agency,Food Standards Agency,20/10/2014,Subsistence UK,Operations Local Delivery ,Redfern Travel Ltd,092197,80.56,REDFERN TRAVEL INVOICE wk 41,BD1 3AZ,Admin
Food Standards Agency,Food Standards Agency,06/10/2014,Travel UK ,European & International Strategy,Redfern Travel Ltd,090404,80.19,REDFERN TRAVEL INVOICE wk 39,BD1 3AZ,Admin
Food Standards Agency,Food Standards Agency,28/10/2014,Subsistence UK,Area 3 North West England - Cluster 35,Redfern Travel Ltd,092481,79.56,REDFERN TRAVEL INVOICE wk 42,BD1 3AZ,Programme
Food Standards Agency,Food Standards Agency,06/10/2014,Subsistence UK,Area 4 North East England - Cluster 42,Redfern Travel Ltd,090404,79.56,REDFERN TRAVEL INVOICE wk 39,BD1 3AZ,Programme
Food Standards Agency,Food Standards Agency,28/10/2014,Subsistence - EC,Food Hygiene Policy Branch,Redfern Travel Ltd,092481,79.14,REDFERN TRAVEL INVOICE wk 42,BD1 3AZ,Admin
Food Standards Agency,Food Standards Agency,06/10/2014,Travel UK ,Area 3 North West England - Cluster 36,Redfern Travel Ltd,090404,78.32,REDFERN TRAVEL INVOICE wk 39,BD1 3AZ,Programme
Food Standards Agency,Food Standards Agency,28/10/2014,Travel UK ,Area 6 South East England - Cluster 65,Redfern Travel Ltd,092481,78.32,REDFERN TRAVEL INVOICE wk 42,BD1 3AZ,Programme
Food Standards Agency,Food Standards Agency,10/10/2014,Subsistence UK,Radiation & Residues,Redfern Travel Ltd,091671,77.56,REDFERN TRAVEL INVOICE wk 40,BD1 3AZ,Admin
Food Standards Agency,Food Standards Agency,28/10/2014,Travel UK ,Chair & Deputy Chair,Redfern Travel Ltd,092481,77.46,REDFERN TRAVEL INVOICE wk 42,BD1 3AZ,Admin
Food Standards Agency,Food Standards Agency,06/10/2014,Travel UK ,Area 4 North East England - Cluster 46,Redfern Travel Ltd,090404,77.09,REDFERN TRAVEL INVOICE wk 39,BD1 3AZ,Programme
Food Standards Agency,Food Standards Agency,06/10/2014,Subsistence - EC,Area 5 South West England - Cluster 57,Redfern Travel Ltd,090404,76.56,REDFERN TRAVEL INVOICE wk 39,BD1 3AZ,Programme
Food Standards Agency,Food Standards Agency,06/10/2014,Subsistence UK,Area 5 South West England - Cluster 52,Redfern Travel Ltd,090404,76.56,REDFERN TRAVEL INVOICE wk 39,BD1 3AZ,Programme
Food Standards Agency,Food Standards Agency,28/10/2014,Subsistence UK,Area 5 South West England - Cluster 54,Redfern Travel Ltd,092481,75.56,REDFERN TRAVEL INVOICE wk 42,BD1 3AZ,Programme
Food Standards Agency,Food Standards Agency,10/10/2014,Travel UK ,Area 6 South East England - Cluster 61,Redfern Travel Ltd,091671,74.93,REDFERN TRAVEL INVOICE wk 40,BD1 3AZ,Programme
Food Standards Agency,Food Standards Agency,10/10/2014,Travel UK ,Food Production Branch,Redfern Travel Ltd,091671,74.90,REDFERN TRAVEL INVOICE wk 40,BD1 3AZ,Admin
Food Standards Agency,Food Standards Agency,10/10/2014,Subsistence UK,Area 5 South West England - Cluster 56,Redfern Travel Ltd,091671,74.52,REDFERN TRAVEL INVOICE wk 40,BD1 3AZ,Programme
Food Standards Agency,Food Standards Agency,28/10/2014,Subsistence UK,Area 6 South East England - Cluster 65,Redfern Travel Ltd,092481,74.00,REDFERN TRAVEL INVOICE wk 42,BD1 3AZ,Programme
Food Standards Agency,Food Standards Agency,20/10/2014,Travel UK ,Area 6 South East England - Cluster 66,Redfern Travel Ltd,092197,73.47,REDFERN TRAVEL INVOICE wk 41,BD1 3AZ,Programme
Food Standards Agency,Food Standards Agency,06/10/2014,Subsistence UK,Chemical Risk Assessment Unit,Redfern Travel Ltd,090404,72.56,REDFERN TRAVEL INVOICE wk 39,BD1 3AZ,Admin
Food Standards Agency,Food Standards Agency,06/10/2014,Travel UK ,Official Controls & Enforcement Strategy,Redfern Travel Ltd,090404,70.77,REDFERN TRAVEL INVOICE wk 39,BD1 3AZ,Admin
Food Standards Agency,Food Standards Agency,28/10/2014,Subsistence UK,Animal Feed     ,Redfern Travel Ltd,092481,70.56,REDFERN TRAVEL INVOICE wk 42,BD1 3AZ,Admin
Food Standards Agency,Food Standards Agency,28/10/2014,Subsistence UK,Area 2 Wales - Cluster 22,Redfern Travel Ltd,092481,70.06,REDFERN TRAVEL INVOICE wk 42,BD1 3AZ,Programme
Food Standards Agency,Food Standards Agency,28/10/2014,Travel UK ,Meat & Hygiene & TSE Policy Branch,Redfern Travel Ltd,092481,67.86,REDFERN TRAVEL INVOICE wk 42,BD1 3AZ,Admin
Food Standards Agency,Food Standards Agency,28/10/2014,Subsistence UK,IT Information & Knowledge Management,Redfern Travel Ltd,092481,66.56,REDFERN TRAVEL INVOICE wk 42,BD1 3AZ,Admin
Food Standards Agency,Food Standards Agency,20/10/2014,Subsistence - EC,Area 2 Wales - Cluster 21,Redfern Travel Ltd,092197,65.56,REDFERN TRAVEL INVOICE wk 41,BD1 3AZ,Programme
Food Standards Agency,Food Standards Agency,06/10/2014,Subsistence UK,Area 2 Wales - Cluster 21,Redfern Travel Ltd,090404,62.56,REDFERN TRAVEL INVOICE wk 39,BD1 3AZ,Programme
Food Standards Agency,Food Standards Agency,06/10/2014,Subsistence UK,Area 2 Wales - Cluster 22,Redfern Travel Ltd,090404,62.56,REDFERN TRAVEL INVOICE wk 39,BD1 3AZ,Programme
Food Standards Agency,Food Standards Agency,20/10/2014,Travel UK ,Radiation & Residues,Redfern Travel Ltd,092197,61.90,REDFERN TRAVEL INVOICE wk 41,BD1 3AZ,Admin
Food Standards Agency,Food Standards Agency,20/10/2014,Travel UK ,Area 3 North West England - Cluster 36,Redfern Travel Ltd,092197,61.25,REDFERN TRAVEL INVOICE wk 41,BD1 3AZ,Programme
Food Standards Agency,Food Standards Agency,10/10/2014,Subsistence UK,IT Information & Knowledge Management,Redfern Travel Ltd,091671,60.56,REDFERN TRAVEL INVOICE wk 40,BD1 3AZ,Admin
Food Standards Agency,Food Standards Agency,10/10/2014,Travel UK ,Better Regulations & Sustainable Development,Redfern Travel Ltd,091671,60.50,REDFERN TRAVEL INVOICE wk 40,BD1 3AZ,Admin
Food Standards Agency,Food Standards Agency,20/10/2014,Travel UK ,Area 3 North West England - Cluster 32,Redfern Travel Ltd,092197,54.27,REDFERN TRAVEL INVOICE wk 41,BD1 3AZ,Programme
Food Standards Agency,Food Standards Agency,28/10/2014,Travel UK ,Animal Feed     ,Redfern Travel Ltd,092481,49.91,REDFERN TRAVEL INVOICE wk 42,BD1 3AZ,Admin
Food Standards Agency,Food Standards Agency,10/10/2014,Subsistence UK,Area 3 North West England - Cluster 34,Redfern Travel Ltd,091671,45.01,REDFERN TRAVEL INVOICE wk 40,BD1 3AZ,Programme
Food Standards Agency,Food Standards Agency,10/10/2014,Subsistence UK,Operations Local Delivery ,Redfern Travel Ltd,091671,44.56,REDFERN TRAVEL INVOICE wk 40,BD1 3AZ,Admin
Food Standards Agency,Food Standards Agency,06/10/2014,Travel UK ,Area 6 South East England - Cluster 65,Redfern Travel Ltd,090404,42.63,REDFERN TRAVEL INVOICE wk 39,BD1 3AZ,Programme
Food Standards Agency,Food Standards Agency,20/10/2014,Travel UK ,Operations Assurance - Admin,Redfern Travel Ltd,092197,41.23,REDFERN TRAVEL INVOICE wk 41,BD1 3AZ,Admin
Food Standards Agency,Food Standards Agency,20/10/2014,Subsistence UK,Area 5 South West England - Cluster 52,Redfern Travel Ltd,092197,41.21,REDFERN TRAVEL INVOICE wk 41,BD1 3AZ,Programme
Food Standards Agency,Food Standards Agency,10/10/2014,Travel UK ,Hygiene & Microbiology Division HoD,Redfern Travel Ltd,091671,40.70,REDFERN TRAVEL INVOICE wk 40,BD1 3AZ,Admin
Food Standards Agency,Food Standards Agency,10/10/2014,Subsistence UK,Area 4 North East England - Cluster 47,Redfern Travel Ltd,091671,40.56,REDFERN TRAVEL INVOICE wk 40,BD1 3AZ,Programme
Food Standards Agency,Food Standards Agency,20/10/2014,Travel UK ,Comms Directors Office,Redfern Travel Ltd,092197,40.49,REDFERN TRAVEL INVOICE wk 41,BD1 3AZ,Admin
Food Standards Agency,Food Standards Agency,10/10/2014,Travel UK ,Area 6 South East England - Cluster 66,Redfern Travel Ltd,091671,39.04,REDFERN TRAVEL INVOICE wk 40,BD1 3AZ,Programme
Food Standards Agency,Food Standards Agency,06/10/2014,Travel UK ,Area 4 North East England - Cluster 41,Redfern Travel Ltd,090404,38.88,REDFERN TRAVEL INVOICE wk 39,BD1 3AZ,Programme
Food Standards Agency,Food Standards Agency,28/10/2014,Travel UK ,Area 2 Wales - Cluster 22,Redfern Travel Ltd,092481,36.52,REDFERN TRAVEL INVOICE wk 42,BD1 3AZ,Programme
Food Standards Agency,Food Standards Agency,28/10/2014,Travel UK ,Procurement,Redfern Travel Ltd,092481,35.85,REDFERN TRAVEL INVOICE wk 42,BD1 3AZ,Admin
Food Standards Agency,Food Standards Agency,20/10/2014,Travel UK ,Area 4 North East England - Cluster 48,Redfern Travel Ltd,092197,34.89,REDFERN TRAVEL INVOICE wk 41,BD1 3AZ,Programme
Food Standards Agency,Food Standards Agency,06/10/2014,Travel UK ,Area 3 North West England - Cluster 32,Redfern Travel Ltd,090404,32.69,REDFERN TRAVEL INVOICE wk 39,BD1 3AZ,Programme
Food Standards Agency,Food Standards Agency,10/10/2014,Travel UK ,Animal Feed     ,Redfern Travel Ltd,091671,31.92,REDFERN TRAVEL INVOICE wk 40,BD1 3AZ,Admin
Food Standards Agency,Food Standards Agency,28/10/2014,Travel UK ,Area 2 Wales - Cluster 21,Redfern Travel Ltd,092481,30.50,REDFERN TRAVEL INVOICE wk 42,BD1 3AZ,Programme
Food Standards Agency,Food Standards Agency,28/10/2014,Travel UK ,Area 6 South East England - Cluster 61,Redfern Travel Ltd,092481,30.29,REDFERN TRAVEL INVOICE wk 42,BD1 3AZ,Programme
Food Standards Agency,Food Standards Agency,06/10/2014,Travel UK ,Microbiological Food Safety Branch,Redfern Travel Ltd,090404,29.16,REDFERN TRAVEL INVOICE wk 39,BD1 3AZ,Admin
Food Standards Agency,Food Standards Agency,10/10/2014,Travel UK ,Area 4 North East England - Cluster 41,Redfern Travel Ltd,091671,28.37,REDFERN TRAVEL INVOICE wk 40,BD1 3AZ,Programme
Food Standards Agency,Food Standards Agency,10/10/2014,Travel UK ,Area 4 North East England - Cluster 44,Redfern Travel Ltd,091671,27.88,REDFERN TRAVEL INVOICE wk 40,BD1 3AZ,Programme
Food Standards Agency,Food Standards Agency,06/10/2014,Travel UK ,Area 4 North East England - Cluster 48,Redfern Travel Ltd,090404,26.15,REDFERN TRAVEL INVOICE wk 39,BD1 3AZ,Programme
Food Standards Agency,Food Standards Agency,28/10/2014,Travel UK ,Hygiene & Microbiology Division HoD,Redfern Travel Ltd,092481,23.20,REDFERN TRAVEL INVOICE wk 42,BD1 3AZ,Admin
Food Standards Agency,Food Standards Agency,20/10/2014,Travel UK ,Area 1 Scotland - Cluster 13,Redfern Travel Ltd,092197,20.37,REDFERN TRAVEL INVOICE wk 41,BD1 3AZ,Programme
Food Standards Agency,Food Standards Agency,28/10/2014,Travel UK ,Area 3 North West England - Cluster 34,Redfern Travel Ltd,092481,18.31,REDFERN TRAVEL INVOICE wk 42,BD1 3AZ,Programme
Food Standards Agency,Food Standards Agency,06/10/2014,Travel UK ,Hygiene & Microbiology Division HoD,Redfern Travel Ltd,090404,18.00,REDFERN TRAVEL INVOICE wk 39,BD1 3AZ,Admin
Food Standards Agency,Food Standards Agency,28/10/2014,Subsistence UK,Legal Branch A,Redfern Travel Ltd,092481,17.06,REDFERN TRAVEL INVOICE wk 42,BD1 3AZ,Admin
Food Standards Agency,Food Standards Agency,20/10/2014,Subsistence UK,European & International Strategy,Redfern Travel Ltd,092197,6.91,REDFERN TRAVEL INVOICE wk 41,BD1 3AZ,Admin
Food Standards Agency,Food Standards Agency,06/10/2014,Subsistence - EC,Additives,Redfern Travel Ltd,090404,4.68,REDFERN TRAVEL INVOICE wk 39,BD1 3AZ,Admin
Food Standards Agency,Food Standards Agency,06/10/2014,Subsistence - EC,Food Hygiene Policy Branch,Redfern Travel Ltd,090404,3.12,REDFERN TRAVEL INVOICE wk 39,BD1 3AZ,Admin
Food Standards Agency,Food Standards Agency,28/10/2014,Subsistence UK,Radiation & Residues,Redfern Travel Ltd,092481,1.56,REDFERN TRAVEL INVOICE wk 42,BD1 3AZ,Admin
Food Standards Agency,Food Standards Agency,28/10/2014,Travel UK ,Chemical Risk Assessment Unit,Redfern Travel Ltd,092481,1.56,REDFERN TRAVEL INVOICE wk 42,BD1 3AZ,Admin
Food Standards Agency,Food Standards Agency,28/10/2014,International Subsistence,Consumer Protection & Commercial Support,Redfern Travel Ltd,092481,1.56,REDFERN TRAVEL INVOICE wk 42,BD1 3AZ,Admin
Food Standards Agency,Food Standards Agency,10/10/2014,Subsistence - EC,Legal Branch A,Redfern Travel Ltd,091671,1.56,REDFERN TRAVEL INVOICE wk 40,BD1 3AZ,Admin
Food Standards Agency,Food Standards Agency,28/10/2014,Subsistence - EC,Legal Branch A,Redfern Travel Ltd,092481,1.56,REDFERN TRAVEL INVOICE wk 42,BD1 3AZ,Admin
Food Standards Agency,Food Standards Agency,28/10/2014,Subsistence - EC,Official Feed & Foods Controls Policy Unit,Redfern Travel Ltd,092481,1.56,REDFERN TRAVEL INVOICE wk 42,BD1 3AZ,Admin
Food Standards Agency,Food Standards Agency,10/10/2014,Subsistence - EC,Animal Feed     ,Redfern Travel Ltd,091671,1.56,REDFERN TRAVEL INVOICE wk 40,BD1 3AZ,Admin
Food Standards Agency,Food Standards Agency,06/10/2014,Subsistence - EC,Consumer Protection & Commercial Support,Redfern Travel Ltd,090404,1.56,REDFERN TRAVEL INVOICE wk 39,BD1 3AZ,Admin
Food Standards Agency,Food Standards Agency,28/10/2014,Subsistence - EC,Consumer Protection & Commercial Support,Redfern Travel Ltd,092481,1.56,REDFERN TRAVEL INVOICE wk 42,BD1 3AZ,Admin
Food Standards Agency,Food Standards Agency,06/10/2014,Subsistence - EC,Agricultural Process & Environmental Contaminants & Strategy,Redfern Travel Ltd,090404,1.56,REDFERN TRAVEL INVOICE wk 39,BD1 3AZ,Admin
Food Standards Agency,Food Standards Agency,10/10/2014,Subsistence - EC,Agricultural Process & Environmental Contaminants & Strategy,Redfern Travel Ltd,091671,1.56,REDFERN TRAVEL INVOICE wk 40,BD1 3AZ,Admin
Food Standards Agency,Food Standards Agency,10/10/2014,Subsistence - EC,Hygiene & Microbiology Division HoD,Redfern Travel Ltd,091671,1.56,REDFERN TRAVEL INVOICE wk 40,BD1 3AZ,Admin
Food Standards Agency,Food Standards Agency,06/10/2014,Subsistence - EC,EU Regulatory Reform Branch,Redfern Travel Ltd,090404,1.56,REDFERN TRAVEL INVOICE wk 39,BD1 3AZ,Admin
Food Standards Agency,Food Standards Agency,28/10/2014,Subsistence - EC,EU Regulatory Reform Branch,Redfern Travel Ltd,092481,1.56,REDFERN TRAVEL INVOICE wk 42,BD1 3AZ,Admin
Food Standards Agency,Food Standards Agency,10/10/2014,Subsistence - EC,Food Hygiene Policy Branch,Redfern Travel Ltd,091671,1.56,REDFERN TRAVEL INVOICE wk 40,BD1 3AZ,Admin
Food Standards Agency,Food Standards Agency,10/10/2014,Subsistence - EC,Additives,Redfern Travel Ltd,091671,1.56,REDFERN TRAVEL INVOICE wk 40,BD1 3AZ,Admin
Food Standards Agency,Food Standards Agency,06/10/2014,Subsistence - EC,European & International Strategy,Redfern Travel Ltd,090404,1.56,REDFERN TRAVEL INVOICE wk 39,BD1 3AZ,Admin
Food Standards Agency,Food Standards Agency,10/10/2014,Subsistence - EC,European & International Strategy,Redfern Travel Ltd,091671,1.56,REDFERN TRAVEL INVOICE wk 40,BD1 3AZ,Admin
Food Standards Agency,Food Standards Agency,06/10/2014,Subsistence - EC,Internal Audit,Redfern Travel Ltd,090404,1.56,REDFERN TRAVEL INVOICE wk 39,BD1 3AZ,Admin
Food Standards Agency,Food Standards Agency,20/10/2014,Subsistence UK,Area 4 North East England - Cluster 41,Redfern Travel Ltd,092197,1.56,REDFERN TRAVEL INVOICE wk 41,BD1 3AZ,Programme
Food Standards Agency,Food Standards Agency,10/10/2014,Subsistence UK,Area 5 South West England - Cluster 57,Redfern Travel Ltd,091671,1.56,REDFERN TRAVEL INVOICE wk 40,BD1 3AZ,Programme
Food Standards Agency,Food Standards Agency,06/10/2014,Subsistence UK,Area 6 South East England - Cluster 65,Redfern Travel Ltd,090404,1.56,REDFERN TRAVEL INVOICE wk 39,BD1 3AZ,Programme
Food Standards Agency,Food Standards Agency,06/10/2014,Subsistence UK,Animal Feed Branch,Redfern Travel Ltd,090404,1.56,REDFERN TRAVEL INVOICE wk 39,BD1 3AZ,Admin
Food Standards Agency,Food Standards Agency,28/10/2014,Subsistence UK,Animal Feed Branch,Redfern Travel Ltd,092481,1.56,REDFERN TRAVEL INVOICE wk 42,BD1 3AZ,Admin
Food Standards Agency,Food Standards Agency,10/10/2014,Subsistence - EC,Food Production Branch,Redfern Travel Ltd,091671,0.78,REDFERN TRAVEL INVOICE wk 40,BD1 3AZ,Admin
Food Standards Agency,Food Standards Agency,02/10/2014,Mobile phone charges,IT Service Delivery,Vodafone Ltd,73073915,-0.01,JUN- AUG MOBILE CHARGES,RG14 5FF,Admin
Food Standards Agency,Food Standards Agency,20/10/2014,Travel UK ,Area 1 Scotland - Cluster 11,Redfern Travel Ltd,092197,-16.19,REDFERN TRAVEL INVOICE wk 41,BD1 3AZ,Programme
Food Standards Agency,Food Standards Agency,20/10/2014,Subsistence UK,Food Production Branch,Redfern Travel Ltd,092197,-100.65,REDFERN TRAVEL INVOICE wk 41,BD1 3AZ,Admin
Food Standards Agency,Food Standards Agency,20/10/2014,Subsistence UK,Area 4 North East England - Cluster 47,Redfern Travel Ltd,092197,-117.00,REDFERN TRAVEL INVOICE wk 41,BD1 3AZ,Programme
Food Standards Agency,Food Standards Agency,10/10/2014,Subsistence UK,Chief Executive & Private Office,Redfern Travel Ltd,091671,-241.03,REDFERN TRAVEL INVOICE wk 40,BD1 3AZ,Admin
Food Standards Agency,Food Standards Agency,28/10/2014,Travel Lump sum,Procurement,Redfern Travel Ltd,092481,-577.74,REDFERN TRAVEL INVOICE wk 42,BD1 3AZ,Admin
Food Standards Agency,Food Standards Agency,06/10/2014,Travel Lump sum,Procurement,Redfern Travel Ltd,090404,-788.20,REDFERN TRAVEL INVOICE wk 39,BD1 3AZ,Admin
"Date Run: 25-NOV-14 10.02.24 AM --- Company Code : '17, 18' , Payment Start Date : '01-OCT-2014' , Payment End Date : '31-OCT-2014'",,,,,,,,,,
